{"text_format":"1","workbook":"xlsx","n_sheets":14,"sheets":["Home","Contact","MEGA","HDO","DIGITAL","THRESHOLD","COMS","LISTS","MEGA Review","HDO Review","DIGITAL Review","Threshold Review","Contact Review","UPC Review"],"not_rendered":{"charts":0,"images":0,"macros":1,"external_links":0,"defined_names":16,"comments":0,"pivot_tables":0},"unopened":[],"bounds":{"document_bytes":16777216,"sheet_cells":100000,"rows_first":2000,"rows_last":500,"rows_between":2000,"halvings":0,"cell_chars":16384,"cell_head_chars":4096},"cells_cut":0,"cells_raw":0,"read":"whole","date_system":"1900"}

{"sheet":"Home","index":0,"n_rows":30,"n_cols":15,"rows_kept":30,"cut":false,"hidden":false,"merged":[[16,6,25,11],[0,32,2,34],[0,0,2,7],[0,8,2,15],[0,16,2,23],[0,24,2,31]]}
["  maps"]
[]
[]
["MAPS Event Participation Form V13"]
["Instructions"]
["Click Enable Macros after opening the workbook to access the forms features"]
["Do not open this speadsheet from an email.  Save it to a location on your computer and launch from there."]
["All information should be verified by the supplier prior to submission. It is CRUCIAL that the information you provide is accurate and up to date. "]
["Use the forms \"Next\" and \"Back\" buttons to navigate the form"]
["Only one event type can be submitted at a time. If you have multiple event types to submit for, please complete all submission for one event type and then start the next event type with a clean copy of the MAPS Event Participation Form V2."]
[]
[]
[]
[null,null,null,null,"Event Type:",null,null,null,null,null,null,null,null,null,1]
[]
[]
[null,null,null,null,"Event Description:"]
[]
[]
[]
[]
[]
[]
[]
[]
[]
[]
[]
[]
[null,null,null,null,null,null,null,null,"Next"]

{"sheet":"Contact","index":1,"n_rows":33,"n_cols":8,"rows_kept":33,"cut":false,"hidden":false,"merged":[[12,7,12,15],[13,7,13,15],[14,7,14,15],[15,7,15,15],[16,7,16,15],[17,7,17,15],[0,0,2,4],[3,0,4,3],[9,7,9,15],[10,7,10,15],[11,7,11,15],[29,0,29,3],[29,7,29,15],[30,0,30,3],[30,7,30,15],[31,0,31,3],[31,7,31,15],[18,7,18,15],[23,7,23,15],[24,7,24,15],[25,7,25,15],[28,0,28,3],[28,7,28,15],[19,7,19,15],[20,7,20,15],[21,7,21,15],[22,7,22,15],[26,7,26,15],[27,7,27,15],[35,7,35,15],[36,7,36,15],[37,7,37,15],[38,7,38,15],[39,7,39,15],[40,7,40,15],[32,0,32,3],[32,7,32,15],[33,0,33,3],[33,7,33,15],[34,0,34,3],[34,7,34,15],[47,7,47,15],[48,7,48,15],[49,7,49,15],[50,7,50,15],[51,7,51,15],[52,7,52,15],[41,7,41,15],[42,7,42,15],[43,7,43,15],[44,7,44,15],[45,7,45,15],[46,7,46,15],[59,7,59,15],[60,7,60,15],[61,7,61,15],[62,7,62,15],[63,7,63,15],[64,7,64,15],[53,7,53,15],[54,7,54,15],[55,7,55,15],[56,7,56,15],[57,7,57,15],[58,7,58,15],[71,7,71,15],[72,7,72,15],[73,7,73,15],[74,7,74,15],[75,7,75,15],[76,7,76,15],[65,7,65,15],[66,7,66,15],[67,7,67,15],[68,7,68,15],[69,7,69,15],[70,7,70,15],[83,7,83,15],[84,7,84,15],[85,7,85,15],[86,7,86,15],[87,7,87,15],[88,7,88,15],[77,7,77,15],[78,7,78,15],[79,7,79,15],[80,7,80,15],[81,7,81,15],[82,7,82,15],[95,7,95,15],[96,7,96,15],[97,7,97,15],[98,7,98,15],[99,7,99,15],[100,7,100,15],[89,7,89,15],[90,7,90,15],[91,7,91,15],[92,7,92,15],[93,7,93,15],[94,7,94,15],[107,7,107,15],[108,7,108,15],[109,7,109,15],[110,7,110,15],[111,7,111,15],[112,7,112,15],[101,7,101,15],[102,7,102,15],[103,7,103,15],[104,7,104,15],[105,7,105,15],[106,7,106,15],[119,7,119,15],[120,7,120,15],[121,7,121,15],[122,7,122,15],[123,7,123,15],[124,7,124,15],[113,7,113,15],[114,7,114,15],[115,7,115,15],[116,7,116,15],[117,7,117,15],[118,7,118,15],[131,7,131,15],[132,7,132,15],[133,7,133,15],[134,7,134,15],[135,7,135,15],[136,7,136,15],[125,7,125,15],[126,7,126,15],[127,7,127,15],[128,7,128,15],[129,7,129,15],[130,7,130,15],[143,7,143,15],[144,7,144,15],[145,7,145,15],[146,7,146,15],[147,7,147,15],[148,7,148,15],[137,7,137,15],[138,7,138,15],[139,7,139,15],[140,7,140,15],[141,7,141,15],[142,7,142,15],[155,7,155,15],[156,7,156,15],[157,7,157,15],[158,7,158,15],[159,7,159,15],[160,7,160,15],[149,7,149,15],[150,7,150,15],[151,7,151,15],[152,7,152,15],[153,7,153,15],[154,7,154,15],[167,7,167,15],[168,7,168,15],[169,7,169,15],[170,7,170,15],[171,7,171,15],[172,7,172,15],[161,7,161,15],[162,7,162,15],[163,7,163,15],[164,7,164,15],[165,7,165,15],[166,7,166,15],[179,7,179,15],[180,7,180,15],[181,7,181,15],[182,7,182,15],[183,7,183,15],[184,7,184,15],[173,7,173,15],[174,7,174,15],[175,7,175,15],[176,7,176,15],[177,7,177,15],[178,7,178,15],[191,7,191,15],[192,7,192,15],[193,7,193,15],[194,7,194,15],[195,7,195,15],[196,7,196,15],[185,7,185,15],[186,7,186,15],[187,7,187,15],[188,7,188,15],[189,7,189,15],[190,7,190,15],[203,7,203,15],[204,7,204,15],[205,7,205,15],[206,7,206,15],[207,7,207,15],[208,7,208,15],[197,7,197,15],[198,7,198,15],[199,7,199,15],[200,7,200,15],[201,7,201,15],[202,7,202,15],[216,7,216,15],[217,7,217,15],[218,7,218,15],[219,7,219,15],[220,7,220,15],[209,7,209,15],[210,7,210,15],[211,7,211,15],[212,7,212,15],[213,7,213,15],[214,7,214,15],[239,7,239,15],[240,7,240,15],[241,7,241,15],[242,7,242,15],[5,0,8,9],[233,7,233,15],[234,7,234,15],[235,7,235,15],[236,7,236,15],[237,7,237,15],[238,7,238,15],[227,7,227,15],[228,7,228,15],[229,7,229,15],[230,7,230,15],[231,7,231,15],[232,7,232,15],[221,7,221,15],[222,7,222,15],[223,7,223,15],[224,7,224,15],[225,7,225,15],[226,7,226,15],[215,7,215,15]]}
["  maps"]
[]
[]
["Contact Information"]
[]
["Please complete your contact information using the fields below. You can add as many contacts as you like by using the Add Contact button below. All contacts listed will receive any communication generated by MAPS for this submission. For digital coupon submissions, contact information will be passed along to Inmar for coupon reporting. If the contact you are entering is the appropriate contact for billing matters, please check Yes for Billing Contact. You must add at least one contact before proceeding."]
[]
[]
[]
[null,null,null,null,null,null,null,"Contact(s)"]
[null,"First Name",null,null,null,null,"Remove"]
[]
[null,"Last Name "]
[]
[null,"E-mail Address"]
[]
[null,"K#"]
[]
[null,"Company"]
[]
[null,"Address"]
[]
[null,"City, State"]
[]
[null,"Phone Number"]
[]
[null,"Billing Contact"]
[]
[null,null,null,null,"Add Contact"]
[]
[null,null,null,null,"Continue"]
[]
[null,null,null,null,"Back"]

{"sheet":"MEGA","index":2,"n_rows":31,"n_cols":6,"rows_kept":31,"cut":false,"hidden":false,"merged":[[0,0,2,4],[3,0,4,6],[24,1,27,1],[5,0,7,15]]}
["  maps"]
[]
[]
["MEGA/Department Threshold Events"]
[]
["MEGA/Department Threshold Events (i.e. Buy 5 or More, Save $1 Each) and Department Threshold Events (i.e. Spend $40, Save $10 Baby Event) are large scale promotions executed across the enterprise.  For MEGA events, vendors are responsible for paying the net down redemption, $0.08 RASC handling fee per transaction – fair share distributed based on unit redemptions, and a percentage of POS expenses based on unit redemptions.  For Department Threshold Events such as Spend $X, Save $X events, vendors will be charged a fair share amount of total event redemptions and marketing materials cost based on their total sales on participating items."]
[]
[]
[null,null,"View All Groups"]
[null,null,"Return to Billing Information"]
[null,null,"Save Group"]
[null,"Event Period (Start)"]
[]
[null,"Event Week (Start)"]
[]
[null,"Event Year (Start)"]
[]
[null,"Group Description"]
[]
[null,"Department"]
[]
[null,"Commodity"]
[]
[null,"Division Eligibility:",null,null,null,"Select All"]
[null,"Only uncheck a division if the items WILL NOT participate in that division.\n",null,null,null,"Fred Meyer Only"]
[null,null,null,null,null,"All Except F4L & Roundy's"]
[null,null,null,null,null,"Remove All"]
[]
[]
[null,"Format as 13-digit UPC","UPC INFORMATION"]
[null,"Consumer UPC (13-digit)\n NO CASE UPCS, NO CHECK DIGITS, NO HYPHENS, NO SPACES","Product Description","UPC Size"]

{"sheet":"HDO","index":3,"n_rows":41,"n_cols":36,"rows_kept":41,"cut":false,"hidden":false,"merged":[[37,3,37,5],[0,0,2,4],[5,0,8,15],[30,1,33,1],[3,0,4,3],[9,9,11,11],[19,4,25,8],[12,4,13,8],[11,4,11,8],[15,4,16,8],[37,1,37,2]]}
["  maps",null,null,null,null,null,null,null,null,null,null,null,null,null,null,null,null,null,null,null,null,null,null,null,null,null,null,null,null,null,null,null,null,null,null,"HDO"]
[]
[]
["Weekly Digital Deals"]
[]
["Weekly Digital Deals – a fixed retail coupon available for a limited time to customers at an extremely hot net down retail.  This offer is planned by the merchandising teams in coordination with promo planning teams.  Vendors are responsible for paying the full coupon redemption, $0.08 per download/clip INMAR/You-Tech fee, $0.08 per redemption RASC handling fee, and POS expenses.  WDDs have unlimited downloads and are redeemable for each customer a multiple of times defined by the program (3X, 5X, etc.)."]
[]
[]
[]
[null,null,"View All Coupons"]
[null,null,"Return to Billing Information"]
[null,null,"Save Coupon",null,"Coupon Verbiage"]
[null,null,null,null,{"$f":"IFERROR(DOLLAR(C22),C22) & \" \" & C24 & CHAR(10) & \"When you buy ONE (1) \" & C24&\", \" &C26","v":"$0.00 \nWhen you buy ONE (1) , "}]
[null,"Event Week"]
[]
[null,"Department",null,null,"The above is designed to accurately format 99% of coupons. If your coupon is an outlier, please simply include preferred verbiage in your comment below."]
[]
[null,"Commodity"]
[null,null,null,null,"Comment","(If PO is required for invoice, please supply here.)"]
[null,"Brand"]
[]
[null,"Net Down Retail"]
[]
[null,"Item Description"]
[]
[null,"Size Range"]
[]
[null,"Funding"]
[]
[null,"Division Eligibility",null,null,null,"Select All"]
[null,"Only uncheck a division if the items WILL NOT participate in that division.\n",null,null,null,"Fred Meyer Only"]
[null,null,null,null,null,"All Except F4L & Roundy's"]
[null,null,null,null,null,"Remove All"]
[]
[]
[null,"Expand UPCs to RBP Group"]
[]
[null,"Image upload disabled, Please see CM for any image upload requests"]
[]
[null,"Format as 13-digit UPC","UPC INFORMATION"]
[null,"Consumer UPC (13-digit)\n NO CASE UPCS, NO CHECK DIGITS, NO HYPHENS, NO SPACES","Product Description","UPC Size"]

{"sheet":"DIGITAL","index":4,"n_rows":42,"n_cols":6,"rows_kept":42,"cut":false,"hidden":false,"merged":[[38,3,38,5],[15,4,16,8],[19,4,27,8],[31,1,34,1],[0,0,2,4],[3,0,4,3],[5,0,8,15],[9,9,11,11],[11,4,11,8],[12,4,13,8],[38,1,38,2]]}
["  maps"]
[]
[]
["Digital 5X Event"]
[]
["Digital 5X Event – a multi-week digital coupon event across a variety of suppliers allowing customers to redeem up to 5 times per transaction.  Vendors are responsible for paying the full coupon redemption, $0.08 per download/clip INMAR/You-Tech fee, $0.08 per redemption RASC handling fee, and POS expenses.  5X events have unlimited downloads and participating coupon items should have widespread distribution in planned divisions."]
[]
[]
[]
[null,null,"View All Coupons"]
[null,null,"Return to Billing Information"]
[null,null,"Save Coupon",null,"Coupon Verbiage"]
[null,null,null,null,{"$f":"\"Save \" & IFERROR(DOLLAR(C22),C22) & IF(C24=1, \" on \", \" off \" & C24 & \" \") &C26 & CHAR(10) & \"When you buy \"& VLOOKUP(C24,LISTS!$G:$H,2,FALSE) & \" (\" & C24 &\") \" & C26 & \", \" & C28","v":{"$error":"#N/A"}}]
[null,"Event Week"]
[]
[null,"Department",null,null,"The above is designed to accurately format 99% of coupons. If your coupon is an outlier, please simply include preferred verbiage in your comment below."]
[]
[null,"Commodity"]
[null,null,null,null,"Comment","(If PO is required for invoice, please supply here.)"]
[null,"Brand"]
[]
[null,"Coupon Value"]
[]
[null,"Requirement Quantity"]
[]
[null,"Item Description"]
[]
[null,"Size Range"]
[]
[]
[null,"Division Eligibility",null,null,null,"Select All"]
[null,"Only uncheck a division if the items WILL NOT participate in that division.\n",null,null,null,"Fred Meyer Only"]
[null,null,null,null,null,"All Except F4L & Roundy's"]
[null,null,null,null,null,"Remove All"]
[]
[]
[null,"Expand UPCs to RBP Group"]
[]
[null,"Image upload disabled, Please see CM for any image upload requests"]
[]
[null,"Format as 13-digit UPC","UPC INFORMATION"]
[null,"Consumer UPC (13-digit)\n NO CASE UPCS, NO CHECK DIGITS, NO HYPHENS, NO SPACES","Product Description","UPC Size"]

{"sheet":"THRESHOLD","index":5,"n_rows":43,"n_cols":8,"rows_kept":43,"cut":false,"hidden":false,"merged":[[35,1,38,1],[21,2,23,2],[0,0,2,6],[3,0,4,3],[5,0,8,17],[9,11,11,13],[11,6,11,10],[12,6,13,10],[20,10,21,10],[14,6,19,10],[20,6,21,6],[20,7,21,7],[20,8,21,8],[20,9,21,9]]}
["  maps"]
[]
[]
["Small Scale Threshold Event & Must Buys"]
[]
["Small Scale Threshold Event & Must Buys – a complex retail promotion affecting a small group of related items or a singular vendor’s items.  Examples of complex retail promotions include “$4.99 Must Buy 2”, “Buy X Product, Get Y Product Free”, “Buy One, Get One 50% Off”.  Vendors are responsible for paying the net down redemption expense, $0.08 RASC handling fee for each redeeming instance of the loyalty offer, and POS expenses."]
[]
[]
[]
[null,null,"View All Events"]
[null,null,"Return to Billing Information"]
[null,null,"Save Event"]
[null,null,null,null,null,null,"Additional Comments"]
[null,"Event Start"]
[]
[null,"Event End"]
[]
[null,"Department"]
[]
[null,"Commodity"]
[]
[null,"Offer Description"]
[]
[]
[]
[null,"Offer Limit"]
[]
[null,"Billing Type"]
[]
[null,"Tags Requested"]
[]
[null,"Signs Requested"]
[]
[]
[null,"Division Eligibility",null,null,null,null,null,"Select All"]
[null,"Only uncheck a division if the items WILL NOT participate in that division.\n",null,null,null,null,null,"Fred Meyer Only"]
[null,null,null,null,null,null,null,"All Except F4L & Roundy's"]
[null,null,null,null,null,null,null,"Remove All"]
[null,null,""]
[]
[]
[null,"Format as 13-digit UPC","UPC INFORMATION"]
[null,"Consumer UPC (13-digit)\n NO CASE UPCS, NO CHECK DIGITS, NO HYPHENS, NO SPACES","Product Description","UPC Size"]

{"sheet":"COMS","index":6,"n_rows":780,"n_cols":2,"rows_kept":780,"cut":false,"hidden":false,"merged":[]}
["Dept2","Commodity"]
["01 - Grocery","001 - CANNED FRUIT/FRUIT BOWLS                                         "]
["01 - Grocery","002 - CAN VEGETABLES - SHELF STABLE                                    "]
["01 - Grocery","003 - CAN BEANS                                                        "]
["01 - Grocery","004 - MEAT - SHELF STABLE                                              "]
["01 - Grocery","005 - CAN SEAFOOD - SHELF STABLE                                       "]
["01 - Grocery","006 - CANNED SOUPS                                                     "]
["01 - Grocery","007 - SHELF STABLE JUICE                                               "]
["01 - Grocery","008 - CANNED & DRY MILK                                                "]
["01 - Grocery","010 - ISOTONIC DRINKS                                                  "]
["01 - Grocery","011 - RTD TEA/LEMONADE                                                 "]
["01 - Grocery","012 - MIXERS                                                           "]
["01 - Grocery","013 - SPICES & EXTRACTS                                                "]
["01 - Grocery","014 - MOLASSES/SYRUPS/PANCAKE MIXES                                    "]
["01 - Grocery","015 - SUGARS & SWEETENERS                                              "]
["01 - Grocery","016 - BAKING NEEDS                                                     "]
["01 - Grocery","017 - FLOUR & MEALS                                                    "]
["01 - Grocery","018 - BAKING MIXES                                                     "]
["01 - Grocery","019 - SHORTENING & OIL                                                 "]
["01 - Grocery","022 - TOMATO PRODUCTS-SHELF STABLE                                     "]
["01 - Grocery","023 - CANNED PASTA&MWV FD-SHLF STBL                                    "]
["01 - Grocery","024 - COFFEE & CREAMERS                                                "]
["01 - Grocery","025 - TEAS                                                             "]
["01 - Grocery","026 - DRY RAMEN                                                        "]
["01 - Grocery","027 - BEVERAGE ENHANCERS                                               "]
["01 - Grocery","028 - COCOA MIXES                                                      "]
["01 - Grocery","029 - SOFT DRINKS                                                      "]
["01 - Grocery","030 - OLIVE OIL                                                        "]
["01 - Grocery","032 - SPECIALTY SOFT DRINKS                                            "]
["01 - Grocery","033 - FRUIT SNACKS                                                     "]
["01 - Grocery","034 - LIQUOR                                                           "]
["01 - Grocery","035 - WATER                                                            "]
["01 - Grocery","036 - FROZEN DESSERTS                                                  "]
["01 - Grocery","037 - FROZEN HANDHELDS & SNACKS                                        "]
["01 - Grocery","038 - FROZEN PIZZA                                                     "]
["01 - Grocery","039 - FRZN SS PREMIUM MEALS                                            "]
["01 - Grocery","040 - FROZEN VEGETABLE & VEG DISH                                      "]
["01 - Grocery","041 - FROZEN POTATOES                                                  "]
["01 - Grocery","042 - FROZEN FRUITS                                                    "]
["01 - Grocery","043 - FROZEN JUICE                                                     "]
["01 - Grocery","044 - FROZEN BREAD/DOUGH                                               "]
["01 - Grocery","045 - FROZEN ICE                                                       "]
["01 - Grocery","046 - FROZEN BREAKFAST FOODS                                           "]
["01 - Grocery","047 - TABLE WINE                                                       "]
["01 - Grocery","048 - SPARKLING WINE                                                   "]
["01 - Grocery","049 - MISC WINE                                                        "]
["01 - Grocery","050 - BAKED BREADS                                                     "]
["01 - Grocery","051 - DRY CHEESE                                                       "]
["01 - Grocery","052 - BAKED SWEET GOODS                                                "]
["01 - Grocery","053 - COOKIES                                                          "]
["01 - Grocery","054 - CRACKERS & MISC BAKED FOOD                                       "]
["01 - Grocery","055 - BAG SNACKS                                                       "]
["01 - Grocery","056 - CNV BREAKFAST&WHOLESOME SNKS                                     "]
["01 - Grocery","058 - WAREHOUSE SNACKS                                                 "]
["01 - Grocery","059 - FRZN PREPARED CHICKEN                                            "]
["01 - Grocery","060 - FLUID MILK PRODUCTS                                              "]
["01 - Grocery","061 - MILK BY-PRODUCTS                                                 "]
["01 - Grocery","062 - YOGURT                                                           "]
["01 - Grocery","063 - REFRGRATD JUICES/DRINKS                                          "]
["01 - Grocery","064 - EGGS                                                             "]
["01 - Grocery","065 - CHEESE                                                           "]
["01 - Grocery","066 - REFRGRATED DOUGH PRODUCTS                                        "]
["01 - Grocery","067 - BUTTER/MARGARINE                                                 "]
["01 - Grocery","068 - REFRIGERATED HISPANIC GROCERY                                    "]
["01 - Grocery","069 - REFRIGERATED KOSHER                                              "]
["01 - Grocery","070 - ICE CREAM ICE MILK & SHERBETS                                    "]
["01 - Grocery","071 - FROZEN NOVELTIES-WATER ICE                                       "]
["01 - Grocery","072 - BAGELS&CREAM CHEESE                                              "]
["01 - Grocery","073 - REFRIGERATED DESSERTS                                            "]
["01 - Grocery","074 - REFRIGERATED ITALIAN                                             "]
["01 - Grocery","075 - CKIE/CRACKER MLTI PK/SNGL SRV                                    "]
["01 - Grocery","076 - PEANUT BUTTER/JELLY/JAMS&HONEY                                   "]
["01 - Grocery","077 - SYRUPS TOPPINGS & CONES                                          "]
["01 - Grocery","078 - NUTS                                                             "]
["01 - Grocery","079 - REFRIGERATED COFFEE CREAMERS                                     "]
["01 - Grocery","080 - PICKLE/RELISH/PCKLD VEG&OLIVES                                   "]
["01 - Grocery","081 - DRY MIX DESSERTS                                                 "]
["01 - Grocery","082 - SINGLE SERVE BEVERAGE                                            "]
["01 - Grocery","083 - DRY SAUCE/GRAVY                                                  "]
["01 - Grocery","084 - DRY NOODLES & PASTA                                              "]
["01 - Grocery","085 - COLD CEREAL                                                      "]
["01 - Grocery","087 - RESTRICTED DIET                                                  "]
["01 - Grocery","088 - CONDIMENTS & SAUCES                                              "]
["01 - Grocery","089 - SALAD DRESING&SANDWICH SPREADS                                   "]
["01 - Grocery","090 - DINNER MIXES-DRY                                                 "]
["01 - Grocery","092 - DRY BEAN VEG&RICE                                                "]
["01 - Grocery","093 - TRADITIONAL MEXICAN FOODS                                        "]
["01 - Grocery","096 - ASIAN FOODS                                                      "]
["01 - Grocery","098 - EUROPEAN FOODS                                                   "]
["01 - Grocery","099 - HOT CEREAL                                                       "]
["01 - Grocery","100 - PASTA & PIZZA SAUCE                                              "]
["01 - Grocery","101 - FRZN SS ECONOMY MEALS                                            "]
["01 - Grocery","110 - DRY POTATOES/STUFFNG                                             "]
["01 - Grocery","116 - FRZN MULTI SERVE                                                 "]
["01 - Grocery","117 - GROCERY PRE-PACKAGED BULK                                        "]
["01 - Grocery","118 - FRZN MEATLESS                                                    "]
["01 - Grocery","119 - ASEPTIC JUICE                                                    "]
["01 - Grocery","128 - PIZZA SAUCE/CRUST/MIX                                            "]
["01 - Grocery","131 - ENERGY DRINKS                                                    "]
["01 - Grocery","132 - CAKE DECOR                                                       "]
["01 - Grocery","133 - VINEGAR&COOKING WINES                                            "]
["01 - Grocery","134 - CROUTONS/BREAD STICK&SALAD TOP                                   "]
["01 - Grocery","135 - KOSHER FOODS AND PRODUCTS                                        "]
["01 - Grocery","137 - AUTHENTIC HISPANIC FDS&PRODUCT                                   "]
["01 - Grocery","143 - READY TO SERVE SOUP                                              "]
["01 - Grocery","144 - AUTHENTIC ITALIAN FOODS                                          "]
["01 - Grocery","145 - AUTHENTIC CARIBBEAN FOODS                                        "]
["01 - Grocery","146 - AUTHENTIC CENTRAL AMERICAN FDS                                   "]
["01 - Grocery","147 - AUTHENTIC SOUTH AMERICAN FDS                                     "]
["01 - Grocery","149 - INDIAN FOODS                                                     "]
["01 - Grocery","151 - APPLESAUCE/FRUIT SQUEEZE                                         "]
["01 - Grocery","154 - BROTH/DRY SOUP/BOUILLON                                          "]
["01 - Grocery","155 - FROZEN PASTA                                                     "]
["01 - Grocery","158 - SS/VENDING - SALTY SNACKS                                        "]
["01 - Grocery","164 - SHELF STABLE DESSERTS                                            "]
["01 - Grocery","176 - DOMESTIC ABOVE PREMIUM                                           "]
["01 - Grocery","189 - DOMESTIC PREMIUM                                                 "]
["01 - Grocery","195 - FROZEN AUTHENTIC ASIAN                                           "]
["01 - Grocery","196 - MEAT SNACKS                                                      "]
["01 - Grocery","197 - RICE CAKES                                                       "]
["01 - Grocery","199 - FROZEN HISPANIC                                                  "]
["01 - Grocery","200 - FROZEN KOSHER                                                    "]
["01 - Grocery","203 - BULK WATER                                                       "]
["01 - Grocery","204 - ENHANCED WATER                                                   "]
["01 - Grocery","205 - SPARKLING WATER                                                  "]
["01 - Grocery","208 - FROZEN MIDDLE EASTERN                                            "]
["01 - Grocery","209 - FROZEN AUTHENTIC INDIAN                                          "]
["01 - Grocery","223 - SINGLES                                                          "]
["01 - Grocery","228 - COFFEE FILTERS                                                   "]
["01 - Grocery","230 - NON-ALCOHOLIC                                                    "]
["01 - Grocery","234 - NF CANNED BEANS                                                  "]
["01 - Grocery","239 - NF CANNED MEAT                                                   "]
["01 - Grocery","240 - NF CANNED MEATLESS                                               "]
["01 - Grocery","241 - NF CANNED PASTA                                                  "]
["01 - Grocery","244 - NF DRY SAUCE/GRAVY                                               "]
["01 - Grocery","259 - REFRIGERATED BREAKFAST                                             "]
["01 - Grocery","260 - VODKA                                                            "]
["01 - Grocery","261 - GIN                                                              "]
["01 - Grocery","262 - TEQUILA                                                          "]
["01 - Grocery","263 - RUM                                                              "]
["01 - Grocery","264 - N. AMER WHISKEY                                                  "]
["01 - Grocery","265 - SCOTCH                                                           "]
["01 - Grocery","266 - CORDIALS                                                         "]
["01 - Grocery","267 - BRANDY                                                           "]
["01 - Grocery","268 - RTD COCKTAILS                                                    "]
["01 - Grocery","269 - NF DRY BEAN/GRAIN/SIDE DISHES                                    "]
["01 - Grocery","270 - DOMESTIC BELOW PREMIUM                                           "]
["01 - Grocery","271 - IMPORTED BEERS                                                   "]
["01 - Grocery","272 - FLAVORED MALT BEVERAGES                                          "]
["01 - Grocery","273 - CIDER                                                            "]
["01 - Grocery","274 - CRAFT/MICRO BEERS                                                "]
["01 - Grocery","275 - BEER OTHER                                                       "]
["01 - Grocery","280 - NF FRUIT                                                         "]
["01 - Grocery","281 - NF ENERGY DRINKS                                                 "]
["01 - Grocery","282 - NF SINGLE SERVE FRUIT                                            "]
["01 - Grocery","283 - NF BUTTER                                                        "]
["01 - Grocery","284 - NF CHEESE                                                        "]
["01 - Grocery","286 - NF EGGS                                                          "]
["01 - Grocery","287 - NF MILK                                                          "]
["01 - Grocery","288 - NF MILK BY PRODUCTS                                              "]
["01 - Grocery","290 - NF YOGURT                                                        "]
["01 - Grocery","298 - NF BAKED SWEET GOODS                                             "]
["01 - Grocery","299 - NF COCOA MIXES                                                   "]
["01 - Grocery","305 - NF COFFEE                                                        "]
["01 - Grocery","310 - NF FLOUR                                                         "]
["01 - Grocery","313 - NF BAKING MIXES                                                  "]
["01 - Grocery","314 - NF SUGARS AND SWEETENERS                                         "]
["01 - Grocery","315 - NF OLIVE OIL                                                     "]
["01 - Grocery","321 - NF SHORTENING AND OIL                                            "]
["01 - Grocery","322 - NF CANNED AND DRY MILK                                           "]
["01 - Grocery","323 - NF SPICES AND EXTRACTS                                           "]
["01 - Grocery","324 - NF MOLASSES/SYRUPS/PANCAKE MXS                                   "]
["01 - Grocery","325 - NF PEANUT BTR/JELLY/JAMS&HONEY                                   "]
["01 - Grocery","326 - NF SALAD DRSNG&SANDWICH SPRDS                                    "]
["01 - Grocery","327 - NF CROUTON/BREAD STK&SALAD TOP                                   "]
["01 - Grocery","328 - NF VINEGARS AND COOKING WINE                                     "]
["01 - Grocery","329 - NF PCKLE/RELSH/PCKLD VEG&OLVS                                    "]
["01 - Grocery","331 - NF PASTA/PIZZA SAUCE                                             "]
["01 - Grocery","332 - NF TOMATO PRODUCTS SHLF STABLE                                   "]
["01 - Grocery","335 - NF REFRIG COFFEE CREAMERS                                        "]
["01 - Grocery","336 - NF CAN VEGETABLES SHLF STABLE                                    "]
["01 - Grocery","337 - NF DRY NOODLES AND PASTA                                         "]
["01 - Grocery","338 - NF DINNER MIXES DRY                                              "]
["01 - Grocery","339 - NF DRY POTATOES AND STUFFING                                     "]
["01 - Grocery","344 - NF DRY SAUCE AND GRAVY                                           "]
["01 - Grocery","345 - NF CANNED SOUP                                                   "]
["01 - Grocery","346 - NF READY TO SERVE SOUP                                           "]
["01 - Grocery","347 - NF BROTH/DRY SOUP/BOUILLON                                       "]
["01 - Grocery","348 - NF BAGELS AND CREAM CHEESE                                       "]
["01 - Grocery","350 - NF RFG DOUGH                                                     "]
["01 - Grocery","352 - NF TEA/LEMONADE                                                  "]
["01 - Grocery","353 - NF SPARKLING WATER                                               "]
["01 - Grocery","355 - NF ENHANCED WATER                                                "]
["01 - Grocery","357 - REFRIGERATED ASIAN                                               "]
["01 - Grocery","358 - NF PLANT BASED WATERS                                            "]
["01 - Grocery","359 - NF FRUIT SNACKS                                                  "]
["01 - Grocery","361 - MEXICAN TORTILLA/WRAP/TOSTADA                                    "]
["01 - Grocery","362 - FROZEN POT PIES                                                  "]
["01 - Grocery","364 - NF PIZZA SAUCE/CRUST MIX                                         "]
["01 - Grocery","365 - NF REFRIGERATED ITALIAN                                          "]
["01 - Grocery","368 - NF NATURAL ASIAN FOODS                                           "]
["01 - Grocery","369 - NF SHELF STABLE DESSERTS                                         "]
["01 - Grocery","370 - NF CAKE DECOR                                                    "]
["01 - Grocery","379 - NF Mexican Products"]
["01 - Grocery","384 - RTD COFFEE                                                  "]
["01 - Grocery","385 - NF RTD COFFEE "]
["01 - Grocery","388 - NF Plant Based Milk"]
["01 - Grocery","389 - NF Organic Milk"]
["01 - Grocery","626 - NF DRIED FRUIT                                                   "]
["01 - Grocery","627 - NF BULK FOOD                                                     "]
["01 - Grocery","629 - NF NAT FOODS WATER                                               "]
["01 - Grocery","630 - NF FITNESS                                                       "]
["01 - Grocery","633 - NF CEREALS                                                       "]
["01 - Grocery","636 - DRIED FRUIT                                                      "]
["01 - Grocery","637 - NF RFG JUICES                                                    "]
["01 - Grocery","645 - POPCORN                                                          "]
["01 - Grocery","646 - NF CEREAL BARS                                                   "]
["01 - Grocery","647 - NF COOKIES                                                       "]
["01 - Grocery","648 - NF CRACKERS                                                      "]
["01 - Grocery","660 - NF NAT FOODS-REFRIGERATEDAT                                      "]
["01 - Grocery","662 - NF TEAS                                                          "]
["01 - Grocery","663 - NF NON-DAIRY/DAIRY ASEPTI                                        "]
["01 - Grocery","664 - NF JUICE                                                         "]
["01 - Grocery","665 - NF NAT FOODS SPECIALITY S                                        "]
["01 - Grocery","666 - NF PREPARED/PDGD FOODS                                           "]
["01 - Grocery","667 - NF BAKING NEEDS                                                  "]
["01 - Grocery","668 - NF CONDIMENTS                                                    "]
["01 - Grocery","669 - NF SOUP                                                          "]
["01 - Grocery","671 - NF BREAD                                                         "]
["01 - Grocery","672 - NF SNACK                                                         "]
["01 - Grocery","673 - NF PACKAGED NATURAL SNACK                                        "]
["01 - Grocery","675 - NF REFRIGERATED DAIRY CAS                                        "]
["01 - Grocery","677 - NF REFRIGERATED VEGETARIA                                        "]
["01 - Grocery","683 - NF FROZEN FRUIT                                                  "]
["01 - Grocery","686 - NF FROZEN ENTREES                                                "]
["01 - Grocery","687 - NF FROZEN MEAT ALTERNATIVES                                      "]
["01 - Grocery","688 - NF FROZEN PIZZA                                                  "]
["01 - Grocery","689 - NF FROZEN BREAD                                                  "]
["01 - Grocery","690 - NF FROZEN BREAKFAST                                              "]
["01 - Grocery","691 - NF FROZEN SNACKS AND HANDHELDS                                   "]
["01 - Grocery","692 - NF FROZEN VEGETABLES                                             "]
["01 - Grocery","694 - NF NATURAL FOODS PRE-PACKD                                       "]
["01 - Grocery","695 - NF FZ POTATOES                                                   "]
["01 - Grocery","696 - NF FROZEN ICE CREAM                                              "]
["01 - Grocery","700 - NF FROZEN NOVELTIES                                              "]
["01 - Grocery","704 - NF FROZEN JUICES                                                 "]
["01 - Grocery","715 - NF FROZEN DESSERT                                                "]
["01 - Grocery","Other"]
["03 - HBC","009 - WET DOG FOOD                                                     "]
["03 - HBC","020 - DOG TREATS                                                       "]
["03 - HBC","021 - WET CAT FOOD                                                     "]
["03 - HBC","031 - BABY WIPES                                                       "]
["03 - HBC","086 - BABY FOODS                                                       "]
["03 - HBC","091 - DRY DOG FOOD                                                     "]
["03 - HBC","094 - INFANT FORMULA                                                   "]
["03 - HBC","095 - DRY CAT FOOD                                                     "]
["03 - HBC","097 - WILD BIRD/ANIMAL FEED                                            "]
["03 - HBC","102 - SOAP - LIQUID & BAR                                              "]
["03 - HBC","103 - DISHWASH DETERGENTS                                              "]
["03 - HBC","104 - LAUNDRY DETERGENTS                                               "]
["03 - HBC","105 - LAUNDRY ADDITIVES                                                "]
["03 - HBC","106 - BLEACH                                                           "]
["03 - HBC","107 - HOUSEHOLD CLEANING NEEDS                                         "]
["03 - HBC","108 - AIR CARE                                                         "]
["03 - HBC","109 - WATER CONDITIONING SALT                                          "]
["03 - HBC","111 - PAPER TOWELS                                                     "]
["03 - HBC","112 - BATH TISSUE                                                      "]
["03 - HBC","113 - FACIAL TISSUE                                                    "]
["03 - HBC","114 - PAPER HOUSEWARES                                                 "]
["03 - HBC","115 - FOIL AND WRAPS                                                   "]
["03 - HBC","120 - LITTLE CIGARS                                                    "]
["03 - HBC","121 - CIGARETTES                                                       "]
["03 - HBC","122 - CIGARS                                                           "]
["03 - HBC","123 - LEAF TOBACCO                                                     "]
["03 - HBC","124 - MOIST SNUFF                                                      "]
["03 - HBC","125 - HEATED TOBACCO                                                   "]
["03 - HBC","126 - TOBACCO SET EXEMPT                                               "]
["03 - HBC","127 - ELECTRONIC CIGARETTES                                            "]
["03 - HBC","136 - DIAPERS & DISPOSABLES                                            "]
["03 - HBC","138 - FEMININE HYGIENE                                                 "]
["03 - HBC","139 - NF FACIAL PRODUCTS                                               "]
["03 - HBC","140 - ADULT INCONTINENCE                                               "]
["03 - HBC","152 - NAPKINS&MOIST CLEANING CLOTH                                     "]
["03 - HBC","153 - TRASH/KITCHEN&LAWN&LEAF BAGS                                     "]
["03 - HBC","156 - FROZEN/REFRIGERATED PET FOOD                                     "]
["03 - HBC","157 - HAIR COLOR AND DEVELOPERS                                        "]
["03 - HBC","160 - NF BABY CARE                                                     "]
["03 - HBC","161 - BABY HBC                                                         "]
["03 - HBC","162 - HAND BODY & FACIAL PRODUCTS                                      "]
["03 - HBC","163 - DEODORANTS                                                       "]
["03 - HBC","165 - HAIR CARE ACCESSORIES                                            "]
["03 - HBC","166 - HAIR CARE PRODUCTS                                               "]
["03 - HBC","167 - MULTI-CULTURAL HEALTH & BEAUTY                                   "]
["03 - HBC","168 - PROFESSIONAL HAIR CARE                                           "]
["03 - HBC","169 - SHAVE                                                            "]
["03 - HBC","170 - SMOKING CESSATIONS                                               "]
["03 - HBC","171 - ORAL HYGIENE PRODUCTS                                            "]
["03 - HBC","172 - ANALGESICS                                                       "]
["03 - HBC","173 - COLD & FLU                                                       "]
["03 - HBC","174 - SINUS & ALLERGY                                                  "]
["03 - HBC","175 - DIGESTIVE HEALTH                                                 "]
["03 - HBC","177 - FIRST AID PRODUCTS                                               "]
["03 - HBC","178 - EYE & EAR CARE PRODUCTS                                          "]
["03 - HBC","179 - FOOT CARE PRODUCTS                                               "]
["03 - HBC","180 - VITAMIN PRODUCTS                                                 "]
["03 - HBC","182 - DIETARY AID PRDCT/MED LIQ NUTR                                   "]
["03 - HBC","183 - SEXUAL HEALTH & WELLNESS                                         "]
["03 - HBC","184 - ADULT NUTRITION                                                  "]
["03 - HBC","185 - SUNTAN                                                           "]
["03 - HBC","187 - NF BATH                                                          "]
["03 - HBC","188 - NF DEODORANTS                                                    "]
["03 - HBC","190 - SPECIALITY BATH                                                  "]
["03 - HBC","191 - BATH SHOP                                                        "]
["03 - HBC","192 - NAILCARE/OTHER                                                   "]
["03 - HBC","193 - FRAGRANCES                                                       "]
["03 - HBC","194 - COSMETIC ACCESSORIES                                             "]
["03 - HBC","201 - CANDY - CHECKLANE                                                "]
["03 - HBC","202 - CANDY - PACKAGED                                                 "]
["03 - HBC","206 - CHARCOAL & LIGHTER FLUID                                         "]
["03 - HBC","211 - DISP FD STORAGE CONTAINRS                                        "]
["03 - HBC","212 - PET CARE SUPPLIES                                                "]
["03 - HBC","213 - CAT LITTER                                                       "]
["03 - HBC","215 - NF FEMININE HYGIENE                                              "]
["03 - HBC","216 - NF HAIR CARE PRODUCTS                                            "]
["03 - HBC","217 - NF HAND BODY & FACIAL PRODUCTS                                   "]
["03 - HBC","219 - NF ORAL HYGIENE PRODUCTS                                         "]
["03 - HBC","220 - NF RESPIRATORY PRODUCTS                                          "]
["03 - HBC","225 - NF SOAP-LIQ AND BAR                                              "]
["03 - HBC","227 - NF SUNTAN                                                        "]
["03 - HBC","229 - NF BABY PRODUCTS                                                 "]
["03 - HBC","233 - SHOE CARE                                                        "]
["03 - HBC","235 - GREETING CARDS                                                   "]
["03 - HBC","236 - BOOKSTORE                                                        "]
["03 - HBC","237 - INFANT CARE PRODUCTS                                             "]
["03 - HBC","242 - PERSONAL CARE APPLIANCES                                         "]
["03 - HBC","246 - MAGAZINES                                                        "]
["03 - HBC","247 - COTTON                                               "]
["03 - HBC","249 - NEWSPAPER                                                        "]
["03 - HBC","276 - SMOKING TOBACCO                                                  "]
["03 - HBC","277 - DRY SNUFF                                                        "]
["03 - HBC","278 - PIPE TOBACCO                                                     "]
["03 - HBC","279 - PLUG TOBACCO                                                     "]
["03 - HBC","292 - NF LAUNDRY                                                       "]
["03 - HBC","293 - NF DISH                                                          "]
["03 - HBC","294 - NF AIR FRESHNERS                                                 "]
["03 - HBC","295 - NF PAPER                                                         "]
["03 - HBC","296 - NF AROMA THERAPY OIL/GEL/CNDL                                    "]
["03 - HBC","297 - NF ALOE VERA                                                     "]
["03 - HBC","351 - CAT TREATS                                                       "]
["03 - HBC","360 - NF BABY FORMULA                                                  "]
["03 - HBC","363 - NF FIRST AID                                                     "]
["03 - HBC","366 - TRIAL/TRAVEL SIZE                                                "]
["03 - HBC","374 - HOLIDAY GIFTING"]
["03 - HBC","376 - PERSONAL CARE GIFTING"]
["03 - HBC","377 - BEAUTY MINIS"]
["03 - HBC","395 - TOBACCO FREE NICOTINE POUCHES                                    "]
["03 - HBC","625 - NF PROTEIN POWDERS/LIQUIDS                                       "]
["03 - HBC","634 - NF NATURAL CANDY                                                 "]
["03 - HBC","670 - NF BABY FOOD                                                     "]
["03 - HBC","678 - NF NUTRITION VITAMINS                                            "]
["03 - HBC","680 - NF HOUSEHOLD                                                     "]
["03 - HBC","813 - COLOR COSMETICS                                                  "]
["03 - HBC","Other"]
["07 - Produce/Floral","408 - FRESH KITCHENS FRUIT                                             "]
["07 - Produce/Floral","409 - FRESH KITCHENS VEGETABLES                                        "]
["07 - Produce/Floral","593 - SPICES/JARRED GARLIC                                             "]
["07 - Produce/Floral","594 - DRESSINGS/DIPS                                                   "]
["07 - Produce/Floral","595 - PRODUCE CARE AND HANDLING                                        "]
["07 - Produce/Floral","597 - CONVENIENCE/SNACKING                                             "]
["07 - Produce/Floral","598 - VEGETABLES COOKING BULK                                          "]
["07 - Produce/Floral","599 - VEGETABLES COOKING PACKAGED                                      "]
["07 - Produce/Floral","600 - APPLES                                                           "]
["07 - Produce/Floral","601 - PEARS                                                            "]
["07 - Produce/Floral","602 - CITRUS                                                           "]
["07 - Produce/Floral","603 - GRAPES                                                           "]
["07 - Produce/Floral","604 - BERRIES                                                          "]
["07 - Produce/Floral","605 - STONE FRUIT                                                      "]
["07 - Produce/Floral","606 - TROPICAL FRUIT                                                   "]
["07 - Produce/Floral","607 - MELONS                                                           "]
["07 - Produce/Floral","608 - VEGETABLES SALAD                                                 "]
["07 - Produce/Floral","610 - CARROTS                                                          "]
["07 - Produce/Floral","611 - CORN                                                             "]
["07 - Produce/Floral","612 - BROCCOLI/CAULIFLOWER                                             "]
["07 - Produce/Floral","613 - MUSHROOMS                                                        "]
["07 - Produce/Floral","614 - HERBS/GARLIC                                                     "]
["07 - Produce/Floral","615 - PEPPERS                                                          "]
["07 - Produce/Floral","617 - TOMATOES                                                         "]
["07 - Produce/Floral","618 - POTATOES                                                         "]
["07 - Produce/Floral","619 - ONIONS                                                           "]
["07 - Produce/Floral","620 - BANANAS                                                          "]
["07 - Produce/Floral","621 - FLORAL - HARD GOODS                                              "]
["07 - Produce/Floral","622 - FLORAL - BALLOONS                                                "]
["07 - Produce/Floral","623 - FLORAL - FLOWERING PLANTS                                        "]
["07 - Produce/Floral","624 - FLORAL - FOLIAGE PLANTS                                          "]
["07 - Produce/Floral","631 - FTD                                                              "]
["07 - Produce/Floral","638 - VALUE ADDED VEGETABLES                                           "]
["07 - Produce/Floral","639 - VALUE ADDED FRUIT                                                "]
["07 - Produce/Floral","640 - SALAD MIX                                                        "]
["07 - Produce/Floral","642 - PROCESSED                                                        "]
["07 - Produce/Floral","643 - NUTS                                                             "]
["07 - Produce/Floral","644 - SEASONAL                                                         "]
["07 - Produce/Floral","649 - BOUQUET EVERYDAY MUSICAL                                         "]
["07 - Produce/Floral","650 - ROSES                                                            "]
["07 - Produce/Floral","651 - GIFT & FRUIT BASKETS                                             "]
["07 - Produce/Floral","652 - BOUQUET (NON ROSE)                                               "]
["07 - Produce/Floral","653 - ARRANGEMENTS (NON ROSE)                                          "]
["07 - Produce/Floral","654 - SEED/BULBS (OUTDOOR)                                             "]
["07 - Produce/Floral","655 - ANNUALS (OUTDOOR)                                                "]
["07 - Produce/Floral","656 - PERENNIALS (OUTDOOR)                                             "]
["07 - Produce/Floral","657 - HANGING BASKETS (OUTDOOR)                                        "]
["07 - Produce/Floral","658 - HARDY MUMS (OUTDOOR)                                             "]
["07 - Produce/Floral","659 - CHRISTMAS GREENS (OUTDOOR)                                       "]
["07 - Produce/Floral","661 - JUICES SUPER PREMIUM                                             "]
["07 - Produce/Floral","679 - MULTICULTURAL PRODUCTS                                           "]
["07 - Produce/Floral","681 - FRUIT BASKETS                                                    "]
["07 - Produce/Floral","682 - PLANT CARE&SOIL (OUTDOOR)                                        "]
["07 - Produce/Floral","684 - TREES/SHRUBS (OUTDOOR)                                           "]
["07 - Produce/Floral","702 - PLUSH                                                            "]
["07 - Produce/Floral","703 - POINSETTIA                                                       "]
["07 - Produce/Floral","705 - EASTER LILY                                                      "]
["07 - Produce/Floral","707 - ORCHIDS POTTED                                                   "]
["07 - Produce/Floral","708 - CONSUMER BUNCH (NON ROSE)                                        "]
["07 - Produce/Floral","709 - FOLIAGE (OUTDOOR)                                                "]
["07 - Produce/Floral","711 - FRUIT VEG&HERB PLANTS(OUTDOOR)                                   "]
["07 - Produce/Floral","712 - HARD GOODS (OUTDOOR)                                             "]
["07 - Produce/Floral","713 - MISC (OUTDOOR)                                                   "]
["07 - Produce/Floral","717 - CHRISTMAS TREES (OUTDOOR)                                        "]
["07 - Produce/Floral","721 - EURO GARDENS (INDOOR)                                            "]
["07 - Produce/Floral","724 - FERNS (OUTDOOR)                                                  "]
["07 - Produce/Floral","864 - JUICE BARS                                                       "]
["07 - Produce/Floral","995 - POTTED BULBS (INDOOR)                                            "]
["07 - Produce/Floral","Other"]
["09 - Meat/Seafood","057 - FRZN SEAFOOD                                                     "]
["09 - Meat/Seafood","425 - SEAFOOD - CATFISH                                                "]
["09 - Meat/Seafood","426 - SEAFOOD - TILAPIA                                                "]
["09 - Meat/Seafood","427 - SEAFOOD - TROUT                                                  "]
["09 - Meat/Seafood","428 - SEAFOOD - SALMON-WILD CAUGHT                                     "]
["09 - Meat/Seafood","429 - SEAFOOD - SALMON-FARM RAISED                                     "]
["09 - Meat/Seafood","430 - SEAFOOD - COD                                                    "]
["09 - Meat/Seafood","431 - SEAFOOD - FINFISH OTHER                                          "]
["09 - Meat/Seafood","432 - SEAFOOD - EXOTIC                                                 "]
["09 - Meat/Seafood","433 - SEAFOOD - CRAB                                                   "]
["09 - Meat/Seafood","434 - SEAFOOD - LOBSTER                                                "]
["09 - Meat/Seafood","435 - SEAFOOD - SHRIMP                                                 "]
["09 - Meat/Seafood","436 - SEAFOOD - OYSTER                                                 "]
["09 - Meat/Seafood","437 - SEAFOOD - SCALLOPS                                               "]
["09 - Meat/Seafood","438 - SEAFOOD CRAWFISH                                                 "]
["09 - Meat/Seafood","439 - SEAFOOD - IMITATION SEAFOOD                                      "]
["09 - Meat/Seafood","440 - SEAFOOD - VALUE ADDED SEAFOOD                                    "]
["09 - Meat/Seafood","441 - SEAFOOD - SMOKED SEAFOOD                                         "]
["09 - Meat/Seafood","442 - SEAFOOD - SALAD/DIPS/SCE/COND                                    "]
["09 - Meat/Seafood","443 - SEAFOOD - PARTY TRAYS                                            "]
["09 - Meat/Seafood","444 - SEAFOOD - INEDIBLES                                              "]
["09 - Meat/Seafood","500 - BEEF:LOINS                                                       "]
["09 - Meat/Seafood","501 - BEEF:RIB                                                         "]
["09 - Meat/Seafood","502 - BEEF:ROUND                                                       "]
["09 - Meat/Seafood","503 - BEEF:CHUCK/SHOULDER                                              "]
["09 - Meat/Seafood","504 - BEEF:GRINDS                                                      "]
["09 - Meat/Seafood","505 - BEEF:THIN MEATS                                                  "]
["09 - Meat/Seafood","506 - BEEF:OFFAL                                                       "]
["09 - Meat/Seafood","507 - NATURAL BEEF                                                     "]
["09 - Meat/Seafood","508 - ORGANIC BEEF                                                     "]
["09 - Meat/Seafood","520 - PORK BONELESS LOIN                                               "]
["09 - Meat/Seafood","521 - PORK BONE IN LOIN                                                "]
["09 - Meat/Seafood","522 - PORK SHOULDER\\PICNIC                                             "]
["09 - Meat/Seafood","523 - PORK GRINDS                                                      "]
["09 - Meat/Seafood","524 - PORK THIN MEATS                                                  "]
["09 - Meat/Seafood","525 - PORK OFFAL                                                       "]
["09 - Meat/Seafood","526 - SMOKED HAMS                                                      "]
["09 - Meat/Seafood","527 - SMOKED PORK                                                      "]
["09 - Meat/Seafood","530 - CHICKEN FRESH                                                    "]
["09 - Meat/Seafood","531 - CHICKEN FROZEN (RW)                                              "]
["09 - Meat/Seafood","532 - NATURAL CHICKEN                                                  "]
["09 - Meat/Seafood","533 - ORGANIC CHICKEN                                                  "]
["09 - Meat/Seafood","535 - CHICKEN GRINDS                                                   "]
["09 - Meat/Seafood","536 - CHICKEN OFFAL                                                    "]
["09 - Meat/Seafood","540 - TURKEY FRESH                                                     "]
["09 - Meat/Seafood","541 - TURKEY FROZEN                                                    "]
["09 - Meat/Seafood","542 - NATURAL TURKEY                                                   "]
["09 - Meat/Seafood","543 - ORGANIC TURKEY                                                   "]
["09 - Meat/Seafood","544 - TURKEY SMOKED                                                    "]
["09 - Meat/Seafood","545 - TURKEY GRINDS                                                    "]
["09 - Meat/Seafood","546 - TURKEY OFFAL                                                     "]
["09 - Meat/Seafood","547 - POULTRY OTHER                                                    "]
["09 - Meat/Seafood","552 - CHICKEN FROZEN                                                   "]
["09 - Meat/Seafood","554 - LAMB                                                             "]
["09 - Meat/Seafood","555 - VEAL                                                             "]
["09 - Meat/Seafood","559 - HEAT/SERVE                                                       "]
["09 - Meat/Seafood","560 - MEAT FROZEN                                                      "]
["09 - Meat/Seafood","561 - SNACK MEAT                                                       "]
["09 - Meat/Seafood","563 - CONVENIENT MEALS                                                 "]
["09 - Meat/Seafood","564 - BISON                                                            "]
["09 - Meat/Seafood","565 - KOSHER                                                           "]
["09 - Meat/Seafood","566 - EXOTIC                                                           "]
["09 - Meat/Seafood","568 - RANDOM WEIGHT MEAT PRODUCTS                                      "]
["09 - Meat/Seafood","569 - VALUE ADDED SPECIALTY MEAT                                       "]
["09 - Meat/Seafood","570 - FRESH DINNER SAUSAGE                                             "]
["09 - Meat/Seafood","571 - VALUE ADDED BEEF                                                 "]
["09 - Meat/Seafood","572 - VALUE ADDED POULTRY                                              "]
["09 - Meat/Seafood","573 - VALUE ADDED PORK                                                 "]
["09 - Meat/Seafood","574 - NATURAL PORK                                                     "]
["09 - Meat/Seafood","575 - HOT DOGS                                                         "]
["09 - Meat/Seafood","576 - LUNCHMEAT                                                        "]
["09 - Meat/Seafood","577 - SMOKED DINNER SAUSAGE                                            "]
["09 - Meat/Seafood","578 - BACON                                                            "]
["09 - Meat/Seafood","579 - BREAKFAST SAUSAGE                                                "]
["09 - Meat/Seafood","580 - ENHANCEMENTS                                                     "]
["09 - Meat/Seafood","701 - NF FROZEN MEAT/SEAFOOD                                           "]
["09 - Meat/Seafood","761 - SEAFOOD - CATFISH                                                "]
["09 - Meat/Seafood","762 - SEAFOOD - TILAPIA                                                "]
["09 - Meat/Seafood","764 - SEAFOOD - SALMON-WILD CAUGHT                                     "]
["09 - Meat/Seafood","765 - SEAFOOD - SALMON-FARM RAISED                                     "]
["09 - Meat/Seafood","766 - SEAFOOD - COD                                                    "]
["09 - Meat/Seafood","767 - SEAFOOD - FINFISH OTHER                                          "]
["09 - Meat/Seafood","768 - SEAFOOD - EXOTIC                                                 "]
["09 - Meat/Seafood","769 - SEAFOOD - CRAB                                                   "]
["09 - Meat/Seafood","770 - SEAFOOD - LOBSTER                                                "]
["09 - Meat/Seafood","771 - SEAFOOD - SHRIMP                                                 "]
["09 - Meat/Seafood","772 - SEAFOOD - OYSTER                                                 "]
["09 - Meat/Seafood","773 - SEAFOOD - SCALLOPS                                               "]
["09 - Meat/Seafood","774 - SEAFOOD - CRAWFISH                                               "]
["09 - Meat/Seafood","775 - SEAFOOD - IMITATION SEAFOOD                                      "]
["09 - Meat/Seafood","777 - SEAFOOD - SMOKED SEAFOOD                                         "]
["09 - Meat/Seafood","778 - SEAFOOD - SALAD/DIP/SCE/COND                                     "]
["09 - Meat/Seafood","779 - SEAFOOD - PARTY TRAYS                                            "]
["09 - Meat/Seafood","781 - SEAFOOD - SWAI                                                   "]
["09 - Meat/Seafood","782 - SEAFOOD - TUNA                                                   "]
["09 - Meat/Seafood","783 - SEAFOOD - MAHI MAHI                                              "]
["09 - Meat/Seafood","784 - SEAFOOD - CLAMS                                                  "]
["09 - Meat/Seafood","785 - SEAFOOD - SNAPPER                                                "]
["09 - Meat/Seafood","786 - SEAFOOD - MUSSELS                                                "]
["09 - Meat/Seafood","787 - SEAFOOD - SOLE-FLOUNDER                                          "]
["09 - Meat/Seafood","788 - SEAFOOD - HALIBUT                                                "]
["09 - Meat/Seafood","789 - SEAFOOD - SWORDFISH                                              "]
["09 - Meat/Seafood","865 - SEAFOOD CLAMS                                                    "]
["09 - Meat/Seafood","866 - SEAFOOD HALIBUT                                                  "]
["09 - Meat/Seafood","867 - SEAFOOD MUSSELS                                                  "]
["09 - Meat/Seafood","868 - SEAFOOD MAHI MAHI                                                "]
["09 - Meat/Seafood","869 - SEAFOOD SOLE/FLOUNDER                                            "]
["09 - Meat/Seafood","870 - SEAFOOD SNAPPER                                                  "]
["09 - Meat/Seafood","871 - SEAFOOD SWAI                                                     "]
["09 - Meat/Seafood","872 - SEAFOOD SWORDFISH                                                "]
["09 - Meat/Seafood","873 - SEAFOOD TUNA                                                     "]
["09 - Meat/Seafood","881 - SEAFOOD CORVINA                                                  "]
["09 - Meat/Seafood","882 - SEAFOOD GROUPER                                                  "]
["09 - Meat/Seafood","883 - SEAFOOD ORANGE ROUGHY                                            "]
["09 - Meat/Seafood","Other"]
["10 - Deli/Bakery","340 - PACKAGE PARTY TRAYS                                              "]
["10 - Deli/Bakery","341 - PACKAGED SUSHI:WARHOUSE                                          "]
["10 - Deli/Bakery","342 - HOLIDAY DINNERS                                                  "]
["10 - Deli/Bakery","343 - G&G SANDWICHES                                                   "]
["10 - Deli/Bakery","400 - BREAD                                                            "]
["10 - Deli/Bakery","401 - ROLLS                                                            "]
["10 - Deli/Bakery","402 - BREAKFAST SWEETS                                                 "]
["10 - Deli/Bakery","403 - PIES                                                             "]
["10 - Deli/Bakery","404 - CAKES                                                            "]
["10 - Deli/Bakery","405 - BAKERY PARTY TRAYS                                               "]
["10 - Deli/Bakery","406 - COOKIES                                                          "]
["10 - Deli/Bakery","407 - SWEET GOODS & SNACKS                                             "]
["10 - Deli/Bakery","448 - SPECIALTY BULK CHEESE                                            "]
["10 - Deli/Bakery","450 - BULK SERVICE CASE CHEESE                                         "]
["10 - Deli/Bakery","451 - DELI MEAT: BULK                                                  "]
["10 - Deli/Bakery","452 - PACKAGED SALADS & DESSERTS                                       "]
["10 - Deli/Bakery","453 - SERVICE BEVERAGE                                                 "]
["10 - Deli/Bakery","454 - SNACKS                                                           "]
["10 - Deli/Bakery","455 - DELI SPECIALTIES (RETAIL PK)                                     "]
["10 - Deli/Bakery","456 - HOT MEAL SOLUTIONS                                               "]
["10 - Deli/Bakery","457 - CHICKEN & POULTRY                                                "]
["10 - Deli/Bakery","458 - G&G SALADS                                                       "]
["10 - Deli/Bakery","460 - IN STORE MADE PARTY TRAYS                                        "]
["10 - Deli/Bakery","461 - READY TO HEAT                                                    "]
["10 - Deli/Bakery","462 - SPECIALTY CHEESE PRE PACK                                        "]
["10 - Deli/Bakery","463 - COLD MEAL SOLUTIONS - BULK                                       "]
["10 - Deli/Bakery","464 - FOOD SERVICE - AMERICAN                                          "]
["10 - Deli/Bakery","465 - MEDITERRANEAN BAR                                                "]
["10 - Deli/Bakery","466 - HUMMUS/SALSA/DIPS                                                "]
["10 - Deli/Bakery","470 - DELI MEAT: PRESLICED                                             "]
["10 - Deli/Bakery","471 - FOOD SERVICE - 3RD PARTY                                         "]
["10 - Deli/Bakery","475 - COFFEE SHOP                                                      "]
["10 - Deli/Bakery","476 - COFFEE SHOP SWEET GOODS & RTL                                    "]
["10 - Deli/Bakery","477 - FOOD SERVICE - LATINO                                            "]
["10 - Deli/Bakery","478 - FOOD SERVICE - ITALIAN                                           "]
["10 - Deli/Bakery","480 - PACKAGED PRESLICED AND CUBES                                     "]
["10 - Deli/Bakery","481 - FOOD SERVICE-SANDWICHES                                          "]
["10 - Deli/Bakery","482 - FOOD SERVICE-ICE CREAM                                           "]
["10 - Deli/Bakery","483 - FOOD SERVICE-PAN-ASIAN                                           "]
["10 - Deli/Bakery","484 - FK READY TO HEAT                                                 "]
["10 - Deli/Bakery","485 - SELF SERVE COLD FOODS                                            "]
["10 - Deli/Bakery","486 - PROTEINS-OTHERS                                                  "]
["10 - Deli/Bakery","487 - READY TO HEAT PIZZA                                              "]
["10 - Deli/Bakery","488 - READY TO HEAT SOUP                                               "]
["10 - Deli/Bakery","489 - FK SERVICE MEAL SOLUTIONS                                        "]
["10 - Deli/Bakery","490 - READY TO HEAT PASTA                                              "]
["10 - Deli/Bakery","491 - HOT SOUP                                                         "]
["10 - Deli/Bakery","499 - FRESH KITCHEN MEAL KITS                                          "]
["10 - Deli/Bakery","641 - SALAD BAR                                                        "]
["10 - Deli/Bakery","Other"]
["66 - HBC NON-EDIBLE","207 - HOME FREEZING & CANNING SUPPLIES"]
["66 - HBC NON-EDIBLE","210 - BROOMS & MOPS"]
["66 - HBC NON-EDIBLE","214 - QUICK CLEAN"]
["66 - HBC NON-EDIBLE","218 - CARPET RENTALS & ACCESSORIES"]
["66 - HBC NON-EDIBLE","224 - INSECTICIDES"]
["66 - HBC NON-EDIBLE","226 - DISPOSABLE FOILWARE"]
["73 - Fresh Food Dest","Other"]
["73 - Fresh Food Dest","459 - FRESH SUSHI                                                      "]
["87 - General Merchandise","148 - SEASONAL PAPER&GIFT                                              "]
["87 - General Merchandise","221 - HOSIERY & SOCKS                                                  "]
["87 - General Merchandise","222 - READER GLASSES                                                   "]
["87 - General Merchandise","231 - J-HOOK ITEMS                                                     "]
["87 - General Merchandise","232 - SHOE FINDINGS                                                    "]
["87 - General Merchandise","238 - LIFESTYLE BARS"]
["87 - General Merchandise","245 - BEVERAGE                                                         "]
["87 - General Merchandise","285 - AS SEEN ON TV                                                    "]
["87 - General Merchandise","371 - TEAM LICENSED NON-APPAREL                                        "]
["87 - General Merchandise","735 - DINNERWARE                                                       "]
["87 - General Merchandise","736 - FOOD PREP                                                        "]
["87 - General Merchandise","737 - BULK PLASTICS                                                    "]
["87 - General Merchandise","739 - FOOD STORAGE                                                     "]
["87 - General Merchandise","740 - IN STORE DEMO                                                    "]
["87 - General Merchandise","741 - BAKEWARE                                                         "]
["87 - General Merchandise","742 - FLOOR COVERINGS                                                  "]
["87 - General Merchandise","750 - HEATERS & FANS                                                   "]
["87 - General Merchandise","751 - FIREWOOD/FIRESTARTS                                              "]
["87 - General Merchandise","752 - WATERING                                                         "]
["87 - General Merchandise","755 - OUTDOOR STORAGE AND PET                                          "]
["87 - General Merchandise","790 - KITCHEN                                                          "]
["87 - General Merchandise","791 - FOOD PRESERVATION                                                "]
["87 - General Merchandise","792 - GLASSWARE/FLATWARE                                               "]
["87 - General Merchandise","793 - SCHOOL                                                           "]
["87 - General Merchandise","795 - PLUSH                                                            "]
["87 - General Merchandise","796 - VALENTINE                                                        "]
["87 - General Merchandise","799 - OIL                                                              "]
["87 - General Merchandise","801 - JEWELRY/COSTUME JEWELRY                                          "]
["87 - General Merchandise","803 - HANDBAGS/BAGS                                                    "]
["87 - General Merchandise","804 - SUNGLASSES                                                       "]
["87 - General Merchandise","805 - LADIES HOSIERY                                                   "]
["87 - General Merchandise","806 - CHILDRENS CASUALS                                                "]
["87 - General Merchandise","807 - HOUSEHOLD ELECTRIC                                               "]
["87 - General Merchandise","808 - BATTERIES/FLASHLIGHTS                                            "]
["87 - General Merchandise","809 - SHEETS/COMFORTERS                                                "]
["87 - General Merchandise","810 - CRAFTS/NOTIONS/YARN                                              "]
["87 - General Merchandise","811 - GARDEN CHEMICALS                                                 "]
["87 - General Merchandise","812 - VACUUMS/STEAMERS/CHEMICALS                                       "]
["87 - General Merchandise","814 - CELL ACCESSORIES                                                 "]
["87 - General Merchandise","815 - HOME AND OFFICE                                                  "]
["87 - General Merchandise","816 - CAMPING                                                          "]
["87 - General Merchandise","817 - FERTILIZERS                                                      "]
["87 - General Merchandise","819 - SBT/DIGITAL MUSIC                                                "]
["87 - General Merchandise","822 - PLUMBING                                                         "]
["87 - General Merchandise","824 - PAINT                                                            "]
["87 - General Merchandise","826 - SOFT DECOR                                                       "]
["87 - General Merchandise","828 - FURNITURE                                                        "]
["87 - General Merchandise","830 - SEASONAL ACCESSORIES                                             "]
["87 - General Merchandise","831 - COOKWARE                                                         "]
["87 - General Merchandise","832 - PHOTO/ACC/FILM                                                   "]
["87 - General Merchandise","833 - NON-CONTRACT PHONES                                              "]
["87 - General Merchandise","834 - BASIC BOYS TOYS                                                  "]
["87 - General Merchandise","835 - SMALL LEATHER GOODS                                              "]
["87 - General Merchandise","837 - WHEELED GOODS                                                    "]
["87 - General Merchandise","838 - MISC SEASONAL&SOUVENIRS                                          "]
["87 - General Merchandise","840 - HALLOWEEN                                                        "]
["87 - General Merchandise","841 - CHRISTMAS                                                        "]
["87 - General Merchandise","842 - GAMES                                                            "]
["87 - General Merchandise","844 - GARDEN CENTER PROPANE                                            "]
["87 - General Merchandise","845 - PANELS/HARDWARE                                                  "]
["87 - General Merchandise","847 - ACTIVITY                                                         "]
["87 - General Merchandise","848 - SOLUTIONS                                                        "]
["87 - General Merchandise","849 - COLLEGIATE APPAREL                                               "]
["87 - General Merchandise","850 - CANDLES AND GIFTWARE                                             "]
["87 - General Merchandise","851 - SWIM                                                             "]
["87 - General Merchandise","852 - EASTER                                                           "]
["87 - General Merchandise","853 - CHILDRENS ATHLETIC                                               "]
["87 - General Merchandise","855 - PAINT SUNDRIES                                                   "]
["87 - General Merchandise","856 - FISHING                                                          "]
["87 - General Merchandise","857 - SEASONAL KIDS                                                    "]
["87 - General Merchandise","858 - WALL DECOR AND FRAMES                                            "]
["87 - General Merchandise","859 - MEN'S SEASONAL                                                   "]
["87 - General Merchandise","862 - WMNS SEASONAL                                                    "]
["87 - General Merchandise","874 - HOME ACCESSORIES                                                 "]
["87 - General Merchandise","875 - DECORATIVE GARDEN                                                "]
["87 - General Merchandise","876 - GARDEN BAGGED GOODS                                              "]
["87 - General Merchandise","877 - LAMP/SHADES                                                      "]
["87 - General Merchandise","879 - GRILLS                                                           "]
["87 - General Merchandise","884 - HAND TOOLS                                                       "]
["87 - General Merchandise","885 - POWER TOOL/ACCSSR                                                "]
["87 - General Merchandise","886 - BIRD/SQRL                                                        "]
["87 - General Merchandise","887 - APPLIANCES                                                       "]
["87 - General Merchandise","888 - CLOSET                                                           "]
["87 - General Merchandise","889 - HOUSEHOLD STORAGE                                                "]
["87 - General Merchandise","890 - AUTO BATTERIES                                                   "]
["87 - General Merchandise","891 - AUTO CHEMICALS                                                   "]
["87 - General Merchandise","892 - LIGHTBULBS                                                       "]
["87 - General Merchandise","893 - YARD DECOR                                                       "]
["87 - General Merchandise","894 - GARDEN TOOLS/HDW                                                 "]
["87 - General Merchandise","895 - OUTDOOR LIVING                                                   "]
["87 - General Merchandise","897 - GARDEN POWER EQUIP                                               "]
["87 - General Merchandise","898 - HARDWARE                                                         "]
["87 - General Merchandise","899 - WEATHERIZATION                                                   "]
["87 - General Merchandise","901 - DVDS                                                             "]
["87 - General Merchandise","902 - WOMENS ATHLETIC                                                  "]
["87 - General Merchandise","903 - COMPACT DISC                                                     "]
["87 - General Merchandise","905 - VIDEO GAMES                                                      "]
["87 - General Merchandise","906 - CAMERAS/GPS HARDWARE                                             "]
["87 - General Merchandise","908 - HOME ELCTRNIC ACCSS                                              "]
["87 - General Merchandise","909 - VIDEO ACCESSORIES                                                "]
["87 - General Merchandise","910 - HOME OFFICE HARDWARE                                             "]
["87 - General Merchandise","912 - PORTABLE AUDIO                                                   "]
["87 - General Merchandise","913 - VIDEO HARDWARE                                                   "]
["87 - General Merchandise","914 - DRESS TOPS                                                       "]
["87 - General Merchandise","916 - EXTENDED WARRANTIES                                              "]
["87 - General Merchandise","917 - ONE HOUR PHOTO                                                   "]
["87 - General Merchandise","918 - SMALL ACCESSORIES                                                "]
["87 - General Merchandise","920 - AUTO ACCESSORIES                                                 "]
["87 - General Merchandise","921 - SCAN BASE TRADING DVDS                                           "]
["87 - General Merchandise","923 - BABY BASICS                                                      "]
["87 - General Merchandise","924 - 4-16 GIRLS WEAR                                                  "]
["87 - General Merchandise","925 - LICENSED PROPERTIES                                              "]
["87 - General Merchandise","926 - TODDLER/BOYS                                                     "]
["87 - General Merchandise","928 - 4-20 BOYS WEAR                                                   "]
["87 - General Merchandise","929 - CHILDRENS SLEEPWEAR                                              "]
["87 - General Merchandise","930 - TODDLER/GIRLS                                                    "]
["87 - General Merchandise","933 - INFANT RTW                                                       "]
["87 - General Merchandise","934 - NEWBORN                                                          "]
["87 - General Merchandise","935 - DRESS BOTTOMS                                                    "]
["87 - General Merchandise","936 - BABY FURNITURE                                                   "]
["87 - General Merchandise","937 - GIRLS BASICS                                                     "]
["87 - General Merchandise","938 - BOYS  BASICS                                                     "]
["87 - General Merchandise","939 - BATH                                                             "]
["87 - General Merchandise","940 - BED PILLOWS/PADS                                                 "]
["87 - General Merchandise","941 - AMMO LONG - 18                                                   "]
["87 - General Merchandise","942 - PLANTERS/ACCESSORIES                                             "]
["87 - General Merchandise","943 - AMMO SHORT -21                                                   "]
["87 - General Merchandise","944 - SEASONAL/NOVELTY                                                 "]
["87 - General Merchandise","945 - ATHLETICS                                                        "]
["87 - General Merchandise","946 - EXERCISE                                                         "]
["87 - General Merchandise","947 - HUNTING                                                          "]
["87 - General Merchandise","950 - LADIES SLEEPWEAR                                                 "]
["87 - General Merchandise","952 - FOUNDATIONS                                                      "]
["87 - General Merchandise","953 - DAY LINGERIE                                                     "]
["87 - General Merchandise","954 - BASIC PRE-SCHOOL                                                 "]
["87 - General Merchandise","955 - MENS ACCESSORIES                                                 "]
["87 - General Merchandise","956 - PRO SPORTS APPAREL                                               "]
["87 - General Merchandise","957 - MENS ACTIVEWEAR                                                  "]
["87 - General Merchandise","958 - YNG MENS TOPS & JACKETS                                          "]
["87 - General Merchandise","959 - MENS COLLECTIONS                                                 "]
["87 - General Merchandise","960 - YNG MNS BTTMS/ACCS                                               "]
["87 - General Merchandise","961 - LUGGAGE                                                          "]
["87 - General Merchandise","962 - MENS HOSIERY                                                     "]
["87 - General Merchandise","963 - MENS UNDERWEAR                                                   "]
["87 - General Merchandise","964 - MENS SLEEPWEAR                                                   "]
["87 - General Merchandise","965 - MENS OUTERWEAR                                                   "]
["87 - General Merchandise","966 - WORK CLOTHING                                                    "]
["87 - General Merchandise","967 - BIG/TALL                                                         "]
["87 - General Merchandise","968 - MENS SHIRTS                                                      "]
["87 - General Merchandise","969 - MENS BOTTOMS                                                     "]
["87 - General Merchandise","971 - VIDEO GAME HARDWARE                                              "]
["87 - General Merchandise","972 - VIDEO ACCESSORIES                                                "]
["87 - General Merchandise","973 - BASIC GIRL                                                       "]
["87 - General Merchandise","975 - JR SPORTWEAR TOPS                                                "]
["87 - General Merchandise","976 - JUNIOR BOTTOMS                                                   "]
["87 - General Merchandise","978 - JUNIOR DRESSES                                                   "]
["87 - General Merchandise","979 - LADIES ACTIVE WEAR                                               "]
["87 - General Merchandise","981 - LADIES SWIMWEAR                                                  "]
["87 - General Merchandise","982 - LADIES COATS                                                     "]
["87 - General Merchandise","985 - WOMENS COLLECTIONS                                               "]
["87 - General Merchandise","988 - WOMENS TOPS                                                      "]
["87 - General Merchandise","989 - WOMENS BOTTOMS                                                   "]
["87 - General Merchandise","991 - CASUAL COLLECTIONS                                               "]
["87 - General Merchandise","992 - CASUAL TOPS                                                      "]
["87 - General Merchandise","993 - CASUAL BOTTOMS                                                   "]
["87 - General Merchandise","994 - MENS SHOES                                                       "]
["87 - General Merchandise","997 - WMNS SHOES                                                       "]
["87 - General Merchandise","998 - MENS ATHLETIC SHOES                                              "]
["87 - General Merchandise","Other"]
["96 - BATH & BODY  ","207 - HOME FREEZING & CANNING SUPPLY"]
["96 - BATH & BODY  ","210 - BROOMS & MOPS"]
["96 - BATH & BODY  ","214 - QUICK CLEAN"]
["96 - BATH & BODY  ","218 - CARPET RENTALS & ACCESSORIES"]
["96 - BATH & BODY  ","224 - INSECTICIDES"]
["96 - BATH & BODY  ","226 - DISPOSABLE FOILWARE"]

{"sheet":"LISTS","index":7,"n_rows":333,"n_cols":12,"rows_kept":333,"cut":false,"hidden":false,"merged":[]}
[null,null,null,"Ad Start","PW",null,null,null,null,null,1," "]
["MEGA Event/Department Threshold Event",null,null,"2022-09-21","P9W2 2022",null,1,"ONE",null,"No Limit",2,"MEGA/Department Threshold Events (i.e. Buy 5 or More, Save $1 Each) and Department Threshold Events (i.e. Spend $40, Save $10 Baby Event) are large scale promotions executed across the enterprise. For MEGA events, vendors are responsible for paying the net down redemption, $0.08 RASC handling fee, and a percentage of POS expenses based on unit redemptions. For Department Threshold Events such as Spend $X, Save $X events, vendors will be charged a fair share amount of total event redemptions and marketing materials cost based on their total sales on participating items."]
["Weekly Digital Deals",{"$f":"TODAY() -#REF!","v":{"$error":"#REF!"}},null,"2022-09-28","P9W3 2022",null,2,"TWO",null,"1 Reward",3,"Weekly Digital Deals - a fixed retail coupon available for a limited time to customers at an extremely hot net down retail. This offer is planned by the merchandising teams in coordination with promo planning teams. Vendors are responsible for paying the full coupon redemption, $0.08 per download Inmar fee, and an $0.08 per redemption RASC handling fee. WDDs have unlimited downloads and are redeemable for each customer a multiple of times defined by the program (3X, 5X, etc.)"]
["5X Digital Event",{"$f":"TODAY() -#REF!","v":{"$error":"#REF!"}},null,"2022-10-05","P9W4 2022",null,3,"THREE",null,"2 Rewards",4,"Digital 5X Event - a multi-week digital coupon event across a variety of suppliers allowing customers to redeem up to 5 times per transaction.  Vendors are responsible for paying the full coupon redemption, $0.08 per download Inmar fee, and an $0.08 per redemption RASC handling fee. 5X events have unilimited downloads and participating coupon items should have widespread distribution in planned divisions."]
["Small Scale Threshold Event & Must Buys",null,null,"2022-10-12","P10W1 2022",null,4,"FOUR",null,"3 Rewards",5,"Small Scale Threshold Event & Must Buys - a complex retail promotion affecting a small group of related items or a singular vendor's items. Examples of complex retail promotions include \"$4.99 Must Buy 2\", \"Buy X Product, Get Y Product Free\", \"Buy One, Get One 50% Off\".  Vendors are responsible for paying the net down redemption, $0.08 RASC handling fee, and POS expenses."]
[null,null,null,"2022-10-19","P10W2 2022",null,5,"FIVE",null,"4 Rewards"]
[null,null,null,"2022-10-26","P10W3 2022",null,6,"SIX",null,"5 Rewards"]
[null,null,null,"2022-11-02","P10W4 2022",null,7,"SEVEN",null,"6 Rewards"]
[null,null,null,"2022-11-09","P11W1 2022",null,8,"EIGHT",null,"7 Rewards","Vendor Funded"]
[null,null,null,"2022-11-16","P11W2 2022",null,9,"NINE",null,"8 Rewards","Department Funded"]
[null,null,null,"2022-11-23","P11W3 2022",null,10,"TEN",null,"9 Rewards"]
[null,null,null,"2022-11-30","P11W4 2022",null,11,"ELEVEN",null,"10 Rewards"]
[null,null,null,"2022-12-07","P12W1 2022",null,12,"TWELVE",null,"11 Rewards"]
[null,null,null,"2022-12-14","P12W2 2022",null,13,"THIRTEEN",null,"12 Rewards"]
[null,null,null,"2022-12-21","P12W3 2022",null,14,"FOURTEEN"]
[null,null,null,"2022-12-28","P12W4 2022",null,15,"FIFTEEN"]
[null,null,null,"2023-01-04","P13W1 2022",null,16,"SIXTEEN"]
[null,null,null,"2023-01-11","P13W2 2022",null,17,"SEVENTEEN"]
[null,null,null,"2023-01-18","P13W3 2022",null,18,"EIGHTEEN"]
[null,null,null,"2023-01-25","P13W4 2022",null,19,"NINETEEN"]
[null,null,null,"2023-02-01","P1W1 2023",null,20,"TWENTY"]
[null,null,null,"2023-02-08","P1W2 2023"]
[null,null,null,"2023-02-15","P1W3 2023"]
[null,null,null,"2023-02-22","P1W4 2023"]
[null,null,null,"2023-03-01","P2W1 2023"]
[null,null,null,"2023-03-08","P2W2 2023"]
[null,null,null,"2023-03-15","P2W3 2023"]
[null,null,null,"2023-03-22","P2W4 2023"]
[null,null,null,"2023-03-29","P3W1 2023"]
[null,null,null,"2023-04-05","P3W2 2023"]
[null,null,null,"2023-04-12","P3W3 2023"]
[null,null,null,"2023-04-19","P3W4 2023"]
[null,null,null,"2023-04-26","P4W1 2023"]
[null,null,null,"2023-05-03","P4W2 2023"]
[null,null,null,"2023-05-10","P4W3 2023"]
[null,null,null,"2023-05-17","P4W4 2023"]
[null,null,null,"2023-05-24","P5W1 2023"]
[null,null,null,"2023-05-31","P5W2 2023"]
[null,null,null,"2023-06-07","P5W3 2023"]
[null,null,null,"2023-06-14","P5W4 2023"]
[null,null,null,"2023-06-21","P6W1 2023"]
[null,null,null,"2023-06-28","P6W2 2023"]
[null,null,null,"2023-07-05","P6W3 2023"]
[null,null,null,"2023-07-12","P6W4 2023"]
[null,null,null,"2023-07-19","P7W1 2023"]
[null,null,null,"2023-07-26","P7W2 2023"]
[null,null,null,"2023-08-02","P7W3 2023"]
[null,null,null,"2023-08-09","P7W4 2023"]
[null,null,null,"2023-08-16","P8W1 2023"]
[null,null,null,"2023-08-23","P8W2 2023"]
[null,null,null,"2023-08-30","P8W3 2023"]
[null,null,null,"2023-09-06","P8W4 2023"]
[null,null,null,"2023-09-13","P9W1 2023"]
[null,null,null,"2023-09-20","P9W2 2023"]
[null,null,null,"2023-09-27","P9W3 2023"]
[null,null,null,"2023-10-04","P9W4 2023"]
[null,null,null,"2023-10-11","P10W1 2023"]
[null,null,null,"2023-10-18","P10W2 2023"]
[null,null,null,"2023-10-25","P10W3 2023"]
[null,null,null,"2023-11-01","P10W4 2023"]
[null,null,null,"2023-11-08","P11W1 2023"]
[null,null,null,"2023-11-15","P11W2 2023"]
[null,null,null,"2023-11-22","P11W3 2023"]
[null,null,null,"2023-11-29","P11W4 2023"]
[null,null,null,"2023-12-06","P12W1 2023"]
[null,null,null,"2023-12-13","P12W2 2023"]
[null,null,null,"2023-12-20","P12W3 2023"]
[null,null,null,"2023-12-27","P12W4 2023"]
[null,null,null,"2024-01-03","P13W1 2023"]
[null,null,null,"2024-01-10","P13W2 2023"]
[null,null,null,"2024-01-17","P13W3 2023"]
[null,null,null,"2024-01-24","P13W4 2023"]
[null,null,null,"2024-01-31","P13W5 2023"]
[null,null,null,"2024-02-07","P1W1 2024"]
[null,null,null,"2024-02-14","P1W2 2024"]
[null,null,null,"2024-02-21","P1W3 2024"]
[null,null,null,"2024-02-28","P1W4 2024"]
[null,null,null,"2024-03-06","P2W1 2024"]
[null,null,null,"2024-03-13","P2W2 2024"]
[null,null,null,"2024-03-20","P2W3 2024"]
[null,null,null,"2024-03-27","P2W4 2024"]
[null,null,null,"2024-04-03","P3W1 2024"]
[null,null,null,"2024-04-10","P3W2 2024"]
[null,null,null,"2024-04-17","P3W3 2024"]
[null,null,null,"2024-04-24","P3W4 2024"]
[null,null,null,"2024-05-01","P4W1 2024"]
[null,null,null,"2024-05-08","P4W2 2024"]
[null,null,null,"2024-05-15","P4W3 2024"]
[null,null,null,"2024-05-22","P4W4 2024"]
[null,null,null,"2024-05-29","P5W1 2024"]
[null,null,null,"2024-06-05","P5W2 2024"]
[null,null,null,"2024-06-12","P5W3 2024"]
[null,null,null,"2024-06-19","P5W4 2024"]
[null,null,null,"2024-06-26","P6W1 2024"]
[null,null,null,"2024-07-03","P6W2 2024"]
[null,null,null,"2024-07-10","P6W3 2024"]
[null,null,null,"2024-07-17","P6W4 2024"]
[null,null,null,"2024-07-24","P7W1 2024"]
[null,null,null,"2024-07-31","P7W2 2024"]
[null,null,null,"2024-08-07","P7W3 2024"]
[null,null,null,"2024-08-14","P7W4 2024"]
[null,null,null,"2024-08-21","P8W1 2024"]
[null,null,null,"2024-08-28","P8W2 2024"]
[null,null,null,"2024-09-04","P8W3 2024"]
[null,null,null,"2024-09-11","P8W4 2024"]
[null,null,null,"2024-09-18","P9W1 2024"]
[null,null,null,"2024-09-25","P9W2 2024"]
[null,null,null,"2024-10-02","P9W3 2024"]
[null,null,null,"2024-10-09","P9W4 2024"]
[null,null,null,"2024-10-16","P10W1 2024"]
[null,null,null,"2024-10-23","P10W2 2024"]
[null,null,null,"2024-10-30","P10W3 2024"]
[null,null,null,"2024-11-06","P10W4 2024"]
[null,null,null,"2024-11-13","P11W1 2024"]
[null,null,null,"2024-11-20","P11W2 2024"]
[null,null,null,"2024-11-27","P11W3 2024"]
[null,null,null,"2024-12-04","P11W4 2024"]
[null,null,null,"2024-12-11","P12W1 2024"]
[null,null,null,"2024-12-18","P12W2 2024"]
[null,null,null,"2024-12-25","P12W3 2024"]
[null,null,null,"2025-01-01","P12W4 2024"]
[null,null,null,"2025-01-08","P13W1 2024"]
[null,null,null,"2025-01-15","P13W2 2024"]
[null,null,null,"2025-01-22","P13W3 2024"]
[null,null,null,"2025-01-29","P13W4 2024"]
[null,null,null,"2025-02-05","P1W1 2025"]
[null,null,null,"2025-02-12","P1W2 2025"]
[null,null,null,"2025-02-19","P1W3 2025"]
[null,null,null,"2025-02-26","P1W4 2025"]
[null,null,null,"2025-03-05","P2W1 2025"]
[null,null,null,"2025-03-12","P2W2 2025"]
[null,null,null,"2025-03-19","P2W3 2025"]
[null,null,null,"2025-03-26","P2W4 2025"]
[null,null,null,"2025-04-02","P3W1 2025"]
[null,null,null,"2025-04-09","P3W2 2025"]
[null,null,null,"2025-04-16","P3W3 2025"]
[null,null,null,"2025-04-23","P3W4 2025"]
[null,null,null,"2025-04-30","P4W1 2025"]
[null,null,null,"2025-05-07","P4W2 2025"]
[null,null,null,"2025-05-14","P4W3 2025"]
[null,null,null,"2025-05-21","P4W4 2025"]
[null,null,null,"2025-05-28","P5W1 2025"]
[null,null,null,"2025-06-04","P5W2 2025"]
[null,null,null,"2025-06-11","P5W3 2025"]
[null,null,null,"2025-06-18","P5W4 2025"]
[null,null,null,"2025-06-25","P6W1 2025"]
[null,null,null,"2025-07-02","P6W2 2025"]
[null,null,null,"2025-07-09","P6W3 2025"]
[null,null,null,"2025-07-16","P6W4 2025"]
[null,null,null,"2025-07-23","P7W1 2025"]
[null,null,null,"2025-07-30","P7W2 2025"]
[null,null,null,"2025-08-06","P7W3 2025"]
[null,null,null,"2025-08-13","P7W4 2025"]
[null,null,null,"2025-08-20","P8W1 2025"]
[null,null,null,"2025-08-27","P8W2 2025"]
[null,null,null,"2025-09-03","P8W3 2025"]
[null,null,null,"2025-09-10","P8W4 2025"]
[null,null,null,"2025-09-17","P9W1 2025"]
[null,null,null,"2025-09-24","P9W2 2025"]
[null,null,null,"2025-10-01","P9W3 2025"]
[null,null,null,"2025-10-08","P9W4 2025"]
[null,null,null,"2025-10-15","P10W1 2025"]
[null,null,null,"2025-10-22","P10W2 2025"]
[null,null,null,"2025-10-29","P10W3 2025"]
[null,null,null,"2025-11-05","P10W4 2025"]
[null,null,null,"2025-11-12","P11W1 2025"]
[null,null,null,"2025-11-19","P11W2 2025"]
[null,null,null,"2025-11-26","P11W3 2025"]
[null,null,null,"2025-12-03","P11W4 2025"]
[null,null,null,"2025-12-10","P12W1 2025"]
[null,null,null,"2025-12-17","P12W2 2025"]
[null,null,null,"2025-12-24","P12W3 2025"]
[null,null,null,"2025-12-31","P12W4 2025"]
[null,null,null,"2026-01-07","P13W1 2025"]
[null,null,null,"2026-01-14","P13W2 2025"]
[null,null,null,"2026-01-21","P13W3 2025"]
[null,null,null,"2026-01-28","P13W4 2025"]
[null,null,null,"2026-02-04","P1W1 2026"]
[null,null,null,"2026-02-11","P1W2 2026"]
[null,null,null,"2026-02-18","P1W3 2026"]
[null,null,null,"2026-02-25","P1W4 2026"]
[null,null,null,"2026-03-04","P2W1 2026"]
[null,null,null,"2026-03-11","P2W2 2026"]
[null,null,null,{"$f":"D183+7","v":"2026-03-18"},"P2W3 2026"]
[null,null,null,{"$f":"D184+7","v":"2026-03-25"},"P2W4 2026"]
[null,null,null,"2026-04-01","P3W1 2026"]
[null,null,null,"2026-04-08","P3W2 2026"]
[null,null,null,"2026-04-15","P3W3 2026"]
[null,null,null,"2026-04-22","P3W4 2026"]
[null,null,null,"2026-04-29","P4W1 2026"]
[null,null,null,"2026-05-06","P4W2 2026"]
[null,null,null,"2026-05-13","P4W3 2026"]
[null,null,null,"2026-05-20","P4W4 2026"]
[null,null,null,"2026-05-27","P5W1 2026"]
[null,null,null,"2026-06-03","P5W2 2026"]
[null,null,null,"2026-06-10","P5W3 2026"]
[null,null,null,"2026-06-17","P5W4 2026"]
[null,null,null,"2026-06-24","P6W1 2026"]
[null,null,null,"2026-07-01","P6W2 2026"]
[null,null,null,"2026-07-08","P6W3 2026"]
[null,null,null,"2026-07-15","P6W4 2026"]
[null,null,null,"2026-07-22","P7W1 2026"]
[null,null,null,"2026-07-29","P7W2 2026"]
[null,null,null,"2026-08-05","P7W3 2026"]
[null,null,null,"2026-08-12","P7W4 2026"]
[null,null,null,"2026-08-19","P8W1 2026"]
[null,null,null,"2026-08-26","P8W2 2026"]
[null,null,null,"2026-09-02","P8W3 2026"]
[null,null,null,"2026-09-09","P8W4 2026"]
[null,null,null,"2026-09-16","P9W1 2026"]
[null,null,null,"2026-09-23","P9W2 2026"]
[null,null,null,"2026-09-30","P9W3 2026"]
[null,null,null,"2026-10-07","P9W4 2026"]
[null,null,null,"2026-10-14","P10W1 2026"]
[null,null,null,"2026-10-21","P10W2 2026"]
[null,null,null,"2026-10-28","P10W3 2026"]
[null,null,null,"2026-11-04","P10W4 2026"]
[null,null,null,"2026-11-11","P11W1 2026"]
[null,null,null,"2026-11-18","P11W2 2026"]
[null,null,null,"2026-11-25","P11W3 2026"]
[null,null,null,"2026-12-02","P11W4 2026"]
[null,null,null,"2026-12-09","P12W1 2026"]
[null,null,null,"2026-12-16","P12W2 2026"]
[null,null,null,"2026-12-23","P12W3 2026"]
[null,null,null,"2026-12-30","P12W4 2026"]
[null,null,null,"2027-01-06","P13W1 2026"]
[null,null,null,"2027-01-13","P13W2 2026"]
[null,null,null,"2027-01-20","P13W3 2026"]
[null,null,null,"2027-01-27","P13W4 2026"]
[null,null,null,"2027-02-03","P1W1 2027"]
[null,null,null,"2027-02-10","P1W2 2027"]
[null,null,null,"2027-02-17","P1W3 2027"]
[null,null,null,"2027-02-24","P1W4 2027"]
[null,null,null,"2027-03-03","P2W1 2027"]
[null,null,null,"2027-03-10","P2W2 2027"]
[null,null,null,"2027-03-17","P2W3 2027"]
[null,null,null,"2027-03-24","P2W4 2027"]
[null,null,null,"2027-03-31","P3W1 2027"]
[null,null,null,"2027-04-07","P3W2 2027"]
[null,null,null,"2027-04-14","P3W3 2027"]
[null,null,null,"2027-04-21","P3W4 2027"]
[null,null,null,"2027-04-28","P4W1 2027"]
[null,null,null,"2027-05-05","P4W2 2027"]
[null,null,null,"2027-05-12","P4W3 2027"]
[null,null,null,"2027-05-19","P4W4 2027"]
[null,null,null,"2027-05-26","P5W1 2027"]
[null,null,null,"2027-06-02","P5W2 2027"]
[null,null,null,"2027-06-09","P5W3 2027"]
[null,null,null,{"$f":"D248+7","v":"2027-06-16"},"P5W4 2027"]
[null,null,null,"2027-06-23","P6W1 2027"]
[null,null,null,"2027-06-30","P6W2 2027"]
[null,null,null,"2027-07-07","P6W3 2027"]
[null,null,null,"2027-07-14","P6W4 2027"]
[null,null,null,"2027-07-21","P7W1 2027"]
[null,null,null,"2027-07-28","P7W2 2027"]
[null,null,null,"2027-08-04","P7W3 2027"]
[null,null,null,"2027-08-11","P7W4 2027"]
[null,null,null,"2027-08-18","P8W1 2027"]
[null,null,null,"2027-08-25","P8W2 2027"]
[null,null,null,"2027-09-01","P8W3 2027"]
[null,null,null,"2027-09-08","P8W4 2027"]
[null,null,null,"2027-09-15","P9W1 2027"]
[null,null,null,"2027-09-22","P9W2 2027"]
[null,null,null,"2027-09-29","P9W3 2027"]
[null,null,null,"2027-10-06","P9W4 2027"]
[null,null,null,"2027-10-13","P10W1 2027"]
[null,null,null,"2027-10-20","P10W2 2027"]
[null,null,null,"2027-10-27","P10W3 2027"]
[null,null,null,"2027-11-03","P10W4 2027"]
[null,null,null,"2027-11-10","P11W1 2027"]
[null,null,null,"2027-11-17","P11W2 2027"]
[null,null,null,"2027-11-24","P11W3 2027"]
[null,null,null,"2027-12-01","P11W4 2027"]
[null,null,null,"2027-12-08","P12W1 2027"]
[null,null,null,"2027-12-15","P12W2 2027"]
[null,null,null,"2027-12-22","P12W3 2027"]
[null,null,null,"2027-12-29","P12W4 2027"]
[null,null,null,"2028-01-05","P13W1 2027"]
[null,null,null,"2028-01-12","P13W2 2027"]
[null,null,null,"2028-01-19","P13W3 2027"]
[null,null,null,"2028-01-26","P13W4 2027"]
[null,null,null,"2028-02-02","P1W1 2028"]
[null,null,null,"2028-02-09","P1W2 2028"]
[null,null,null,"2028-02-16","P1W3 2028"]
[null,null,null,"2028-02-23","P1W4 2028"]
[null,null,null,"2028-03-01","P2W1 2028"]
[null,null,null,"2028-03-08","P2W2 2028"]
[null,null,null,"2028-03-15","P2W3 2028"]
[null,null,null,"2028-03-22","P2W4 2028"]
[null,null,null,"2028-03-29","P3W1 2028"]
[null,null,null,"2028-04-05","P3W2 2028"]
[null,null,null,"2028-04-12","P3W3 2028"]
[null,null,null,"2028-04-19","P3W4 2028"]
[null,null,null,"2028-04-26","P4W1 2028"]
[null,null,null,"2028-05-03","P4W2 2028"]
[null,null,null,"2028-05-10","P4W3 2028"]
[null,null,null,"2028-05-17","P4W4 2028"]
[null,null,null,"2028-05-24","P5W1 2028"]
[null,null,null,"2028-05-31","P5W2 2028"]
[null,null,null,"2028-06-07","P5W3 2028"]
[null,null,null,"2028-06-14","P5W4 2028"]
[null,null,null,"2028-06-21","P6W1 2028"]
[null,null,null,"2028-06-28","P6W2 2028"]
[null,null,null,"2028-07-05","P6W3 2028"]
[null,null,null,"2028-07-12","P6W4 2028"]
[null,null,null,"2028-07-19","P7W1 2028"]
[null,null,null,"2028-07-26","P7W2 2028"]
[null,null,null,"2028-08-02","P7W3 2028"]
[null,null,null,"2028-08-09","P7W4 2028"]
[null,null,null,"2028-08-16","P8W1 2028"]
[null,null,null,"2028-08-23","P8W2 2028"]
[null,null,null,"2028-08-30","P8W3 2028"]
[null,null,null,{"$f":"D312+7","v":"2028-09-06"},"P8W4 2028"]
[null,null,null,"2028-09-13","P9W1 2028"]
[null,null,null,"2028-09-20","P9W2 2028"]
[null,null,null,"2028-09-27","P9W3 2028"]
[null,null,null,"2028-10-04","P9W4 2028"]
[null,null,null,"2028-10-11","P10W1 2028"]
[null,null,null,"2028-10-18","P10W2 2028"]
[null,null,null,"2028-10-25","P10W3 2028"]
[null,null,null,"2028-11-01","P10W4 2028"]
[null,null,null,"2028-11-08","P11W1 2028"]
[null,null,null,"2028-11-15","P11W2 2028"]
[null,null,null,"2028-11-22","P11W3 2028"]
[null,null,null,"2028-11-29","P11W4 2028"]
[null,null,null,"2028-12-06","P12W1 2028"]
[null,null,null,"2028-12-13","P12W2 2028"]
[null,null,null,"2028-12-20","P12W3 2028"]
[null,null,null,"2028-12-27","P12W4 2028"]
[null,null,null,"2029-01-03","P13W1 2028"]
[null,null,null,"2029-01-10","P13W2 2028"]
[null,null,null,"2029-01-17","P13W3 2028"]
[null,null,null,"2029-01-24","P13W4 2028"]

{"sheet":"MEGA Review","index":8,"n_rows":8,"n_cols":19,"rows_kept":8,"cut":false,"hidden":false,"merged":[[0,0,2,2],[3,0,4,3],[5,5,5,6],[5,7,5,8]]}
["  maps"]
[]
[]
["MEGA/Large Scale Review"]
[]
[null,null,null,"UPC Details","Add Group","Save & Submit",null,"Contact Details"]
[null,"con_upc_no","con_des_tx","con_prm_cst","itm_grp_des","evt_per_no","evt_wek_no","evt_yer_no","bil_to_tx","fst_nme_tx","lst_nme_tx","rep_eml_tx","rep_phn_tx","kro_crp_no","rep_tos_flg","grp_div_tx","mga_tag_flg","fyt_pmy_dpt","fyt_com_cd"]
["EDIT","REPEAT","DELETE","Submission #","Item Group Description","Event Period","Event Week","Event Year","Bill To","Contact First Name","Contact Last Name","Contact Email","Phone Number","K#","Agree to Terms","Division Eligibility","Include Tags","Department","Commodity"]

{"sheet":"HDO Review","index":9,"n_rows":8,"n_cols":18,"rows_kept":8,"cut":false,"hidden":false,"merged":[[0,0,2,4],[3,0,4,5]]}
["  maps"]
[]
[]
["Weekly Digital Deals Review"]
[]
[null,null,null,"UPC Details","Contact Details","Add Coupon","Save & Submit"]
[null,"con_upc_no","con_des_tx",null,"evt_wek_tx","net_dwn_rtl","itm_des_tx","itm_siz_rng","cpn_vrb_tx","cpn_fnd_tx","brnd_tx","bil_div_tx","exp_rbp_tx","vnd_cmt_tx","img_one_tx","img_two_tx","cpn_dpt_cd","cpn_com_cd"]
["Edit","Repeat","Delete","Submission #","Event Week","Net Down Retail","Item Description","Size Range","Coupon Verbiage","Funding","Brand","Division Eligiblity","Expand to RBP","Comment","Image 1","Image 2","Department","Commodity"]

{"sheet":"DIGITAL Review","index":10,"n_rows":8,"n_cols":18,"rows_kept":8,"cut":false,"hidden":false,"merged":[[0,0,2,3],[3,0,4,4],[5,6,5,7]]}
["  maps"]
[]
[]
["Digital 5X Event Review"]
[]
[null,null,null,"UPC Details","Contact Details","Add Coupon","Save & Submit"]
[null,"con_upc_no","con_des_tx","con_siz_tx","evt_wek_tx","cpn_val_am","cpn_req_qty","itm_des_tx","itm_siz_rng","cpn_vrb_tx","brnd_tx","bil_div_tx","exp_rbp_tx","vnd_cmt_tx","img_one_tx","img_two_tx","cpn_dpt_cd","cpn_com_cd"]
["Edit","Repeat","Delete","Submission #","Event Week","Coupon Value","Req QTY","Item Description","Size Range","Coupon Verbiage","Brand","Division Eligiblity","Expand to RBP","Comment","Image 1","Image 2","Department","Commodity"]

{"sheet":"Threshold Review","index":11,"n_rows":8,"n_cols":15,"rows_kept":8,"cut":false,"hidden":false,"merged":[[0,0,2,3],[3,0,4,4]]}
["  maps"]
[]
[]
["Small Scale Threshold Event & Must Buys"]
[]
[null,null,null,"UPC Details","Contact Details","Add Offer","Save & Submit"]
[null,"con_upc_no","con_des_tx","con_siz_tx","evt_st_tx","evt_end_tx","ofr_des_tx","ofr_lmt_tx","bil_typ_tx","evt_tag_flg","evt_sgn_flg","bil_div_tx","vnd_cmt_tx","evt_dpt_cd","evt_com_cd"]
["EDIT","REPEATE","DELETE","Submission #","Event Start","Event End","Offer Description","Offer Limit","Billing Type","Tags","Signs","Division Eligiblity","Additional Comments","Department","Commodity"]

{"sheet":"Contact Review","index":12,"n_rows":8,"n_cols":10,"rows_kept":8,"cut":false,"hidden":false,"merged":[[0,0,2,2],[3,0,4,2]]}
["  maps"]
[]
[]
["Contact Review"]
[]
[null,null,"Offer Review","UPC Review"]
[null,"fst_nme_tx","lst_nme_tx","eml_tx","kro_crp_no","cmp_nam_tx","cmp_adr_tx","cmp_loc_tx","cmp_phn_tx","bil_flg"]
["Submission #","First Name","Last Name","Email Address","K#","Company Name","Address","City, State","Phone Number","Billing Contact"]

{"sheet":"UPC Review","index":13,"n_rows":8,"n_cols":9,"rows_kept":8,"cut":false,"hidden":false,"merged":[[0,0,2,3],[3,0,4,3]]}
["  maps"]
[]
[]
["UPC Review"]
[]
[null,"Offer Review","Contact Review"]
[null,"con_upc_no","con_des_tx","con_siz_tx","con_prm_cst","con_prm_rtl","con_dsp_qty","con_shlf_no","lik_con_no"]
["Submission #","Consumer UPC","Basic Item Description","Size"]